{"text_format":"1","workbook":"xlsx","n_sheets":4,"sheets":["Sheet4","Daily Programs","Indivigual Programs","Indivigual Program Log"],"not_rendered":{"charts":0,"images":0,"macros":1,"external_links":1,"defined_names":0,"comments":0,"pivot_tables":0},"unopened":[],"bounds":{"document_bytes":16777216,"sheet_cells":100000,"rows_first":2000,"rows_last":500,"rows_between":2000,"halvings":0,"cell_chars":16384,"cell_head_chars":4096},"cells_cut":0,"cells_raw":0,"read":"whole","date_system":"1900"}

{"sheet":"Sheet4","index":0,"n_rows":10,"n_cols":11,"rows_kept":10,"cut":false,"hidden":true,"merged":[]}
["My Story Is Yours","22:56:00",{"$f":"B1","v":"22:56:00"},{"$f":"VLOOKUP(A1,[1]Sheet1!$A$2:$D$1000,3,FALSE)","v":21},{"$f":"TRUNC(D1/60,0)","v":0},{"$f":"MOD(D1,60)","v":21},{"$f":"CONCATENATE(J1, E1, K1, F1)","v":"00:00:21"},{"$f":"B1+G1","v":"22:56:21"},{"$f":"H1","v":"22:56:21"},"00:0",":"]
["Virtues 60","15:07:00",{"$f":"B2","v":"15:07:00"},{"$f":"VLOOKUP(A2,[1]Sheet1!$A$2:$D$1000,3,FALSE)","v":{"$error":"#N/A"}},{"$f":"TRUNC(D2/60,0)","v":{"$error":"#N/A"}},{"$f":"MOD(D2,60)","v":{"$error":"#N/A"}},{"$f":"CONCATENATE(J1, E2, K1, F2)","v":{"$error":"#N/A"}},{"$f":"B2+G2","v":{"$error":"#N/A"}},{"$f":"H2","v":{"$error":"#N/A"}}]
["Tattoo Safety","22:57:00",{"$f":"B3","v":"22:57:00"},{"$f":"VLOOKUP(A3,[1]Sheet1!$A$2:$D$1000,3,FALSE)","v":{"$error":"#N/A"}},{"$f":"TRUNC(D3/60,0)","v":{"$error":"#N/A"}},{"$f":"MOD(D3,60)","v":{"$error":"#N/A"}},{"$f":"CONCATENATE(J1, E3, K1, F3)","v":{"$error":"#N/A"}},{"$f":"B3+G3","v":{"$error":"#N/A"}},{"$f":"H3","v":{"$error":"#N/A"}}]
["Bring A Pencil","22:18:00",{"$f":"B4","v":"22:18:00"},{"$f":"VLOOKUP(A4,[1]Sheet1!$A$2:$D$1000,3,FALSE)","v":{"$error":"#N/A"}},{"$f":"TRUNC(D4/60,0)","v":{"$error":"#N/A"}},{"$f":"MOD(D4,60)","v":{"$error":"#N/A"}},{"$f":"CONCATENATE(J1, E4, K1, F4)","v":{"$error":"#N/A"}},{"$f":"B4+G4","v":{"$error":"#N/A"}},{"$f":"H4","v":{"$error":"#N/A"}}]
["Put Dat Toilet Seat Down","18:03:00",{"$f":"B5","v":"18:03:00"},{"$f":"VLOOKUP(A5,[1]Sheet1!$A$2:$D$1000,3,FALSE)","v":{"$error":"#N/A"}},{"$f":"TRUNC(D5/60,0)","v":{"$error":"#N/A"}},{"$f":"MOD(D5,60)","v":{"$error":"#N/A"}},{"$f":"CONCATENATE(J1, E5, K1, F5)","v":{"$error":"#N/A"}},{"$f":"B5+G5","v":{"$error":"#N/A"}},{"$f":"H5","v":{"$error":"#N/A"}}]
[null,null,{"$f":"B6","v":"00:00:00"},{"$f":"VLOOKUP(A6,[1]Sheet1!$A$2:$D$1000,3,FALSE)","v":{"$error":"#N/A"}},{"$f":"TRUNC(D6/60,0)","v":{"$error":"#N/A"}},{"$f":"MOD(D6,60)","v":{"$error":"#N/A"}},{"$f":"CONCATENATE(J1, E6, K1, F6)","v":{"$error":"#N/A"}},{"$f":"B6+G6","v":{"$error":"#N/A"}},{"$f":"H6","v":{"$error":"#N/A"}}]
[null,null,{"$f":"B7","v":"00:00:00"},{"$f":"VLOOKUP(A7,[1]Sheet1!$A$2:$D$1000,3,FALSE)","v":{"$error":"#N/A"}},{"$f":"TRUNC(D7/60,0)","v":{"$error":"#N/A"}},{"$f":"MOD(D7,60)","v":{"$error":"#N/A"}},{"$f":"CONCATENATE(J1, E7, K1, F7)","v":{"$error":"#N/A"}},{"$f":"B7+G7","v":{"$error":"#N/A"}},{"$f":"H7","v":{"$error":"#N/A"}}]
[null,null,{"$f":"B8","v":"00:00:00"},{"$f":"VLOOKUP(A8,[1]Sheet1!$A$2:$D$1000,3,FALSE)","v":{"$error":"#N/A"}},{"$f":"TRUNC(D8/60,0)","v":{"$error":"#N/A"}},{"$f":"MOD(D8,60)","v":{"$error":"#N/A"}},{"$f":"CONCATENATE(J1, E8, K1, F8)","v":{"$error":"#N/A"}},{"$f":"B8+G8","v":{"$error":"#N/A"}},{"$f":"H8","v":{"$error":"#N/A"}}]
[null,null,{"$f":"B9","v":"00:00:00"},{"$f":"VLOOKUP(A9,[1]Sheet1!$A$2:$D$1000,3,FALSE)","v":{"$error":"#N/A"}},{"$f":"TRUNC(D9/60,0)","v":{"$error":"#N/A"}},{"$f":"MOD(D9,60)","v":{"$error":"#N/A"}},{"$f":"CONCATENATE(J1, E9, K1, F9)","v":{"$error":"#N/A"}},{"$f":"B9+G9","v":{"$error":"#N/A"}},{"$f":"H9","v":{"$error":"#N/A"}}]
[null,null,{"$f":"B10","v":"00:00:00"},{"$f":"VLOOKUP(A10,[1]Sheet1!$A$2:$D$1000,3,FALSE)","v":{"$error":"#N/A"}},{"$f":"TRUNC(D10/60,0)","v":{"$error":"#N/A"}},{"$f":"MOD(D10,60)","v":{"$error":"#N/A"}},{"$f":"CONCATENATE(J1, E10, K1, F10)","v":{"$error":"#N/A"}},{"$f":"B10+G10","v":{"$error":"#N/A"}},{"$f":"H10","v":{"$error":"#N/A"}}]

{"sheet":"Daily Programs","index":1,"n_rows":11,"n_cols":3,"rows_kept":11,"cut":false,"hidden":false,"merged":[[0,0,0,2]]}
["Daily Programs"]
["Program","Air Times","Description"]
["News & Weather","8:00 AM, 12:00 PM, 4:00 PM, 8:00 PM","Local Weather Forcast and reading of current news"]
["PSA","12:00 AM, 5:00AM, 9:00 AM, 1:00 PM, 5:00 PM, 7:00 PM","Public Service Announcements produced by KMNR DJs that cover a variety of topics"]
["Ad Council","1:00 AM, 11:00 AM, 3:00 PM, 6:00 PM, 9:00 PM","Public Service Announcements produced by the Ad Council that cover a variety of topics"]
["Profile America","2:00 AM, 6:00 AM, 10:00 AM, 2:00 PM, 11:00 PM","Daily vignettes about events, commemerations, or observences for that day"]
["Ascertainment","3:00 AM, 7:00 AM, 11:00 AM, 9:00 PM","Programs produced by KMNR DJs about services and activities in the Rolla area"]
["Town and Campus","6:00 AM, 10:00 AM, 2:00 PM, 6:00 PM, 10:00 PM","Listener submited announcements of activites and events in the Rolla area"]
["Science and the Sea","8:00 AM, 12:00 PM, 4:00 PM, 8:00 PM","A presentation of marine science topics produced by the University of Texas Marine Sceince Institute"]
["Concert News","9:00 AM, 1:00 PM, 5:00 PM, 7:00 PM","Announcements of nearby concerts"]
["Earth Date","7:00 AM, 3:00 PM, 11:00 PM","A presentation of earth science topics produced by the Bureau of Economic Geology"]

{"sheet":"Indivigual Programs","index":2,"n_rows":421,"n_cols":3,"rows_kept":421,"cut":false,"hidden":false,"merged":[[0,0,0,2]]}
["Indivigual Program Descriptions"]
["Title","Type","Description"]
[{"$f":"[1]Sheet1!A2","v":"2 Sides 30"},{"$f":"[1]Sheet1!B2","v":"Ad Council"},{"$f":"[1]Sheet1!D2","v":0}]
[{"$f":"[1]Sheet1!A3","v":"2 Sides 60"},{"$f":"[1]Sheet1!B3","v":"Ad Council"},{"$f":"[1]Sheet1!D3","v":0}]
[{"$f":"[1]Sheet1!A4","v":"A seccond Chance 30"},{"$f":"[1]Sheet1!B4","v":"Ad Council"},{"$f":"[1]Sheet1!D4","v":0}]
[{"$f":"[1]Sheet1!A5","v":"Age Means Everything 30"},{"$f":"[1]Sheet1!B5","v":"Ad Council"},{"$f":"[1]Sheet1!D5","v":0}]
[{"$f":"[1]Sheet1!A6","v":"Age Means Everything 60"},{"$f":"[1]Sheet1!B6","v":"Ad Council"},{"$f":"[1]Sheet1!D6","v":0}]
[{"$f":"[1]Sheet1!A7","v":"Airtime 30"},{"$f":"[1]Sheet1!B7","v":"Ad Council"},{"$f":"[1]Sheet1!D7","v":0}]
[{"$f":"[1]Sheet1!A8","v":"Airtime 60"},{"$f":"[1]Sheet1!B8","v":"Ad Council"},{"$f":"[1]Sheet1!D8","v":0}]
[{"$f":"[1]Sheet1!A9","v":"Allison 30"},{"$f":"[1]Sheet1!B9","v":"Ad Council"},{"$f":"[1]Sheet1!D9","v":0}]
[{"$f":"[1]Sheet1!A10","v":"Attention Men 60"},{"$f":"[1]Sheet1!B10","v":"Ad Council"},{"$f":"[1]Sheet1!D10","v":0}]
[{"$f":"[1]Sheet1!A11","v":"Battlefield 30"},{"$f":"[1]Sheet1!B11","v":"Ad Council"},{"$f":"[1]Sheet1!D11","v":0}]
[{"$f":"[1]Sheet1!A12","v":"Battlefield 60"},{"$f":"[1]Sheet1!B12","v":"Ad Council"},{"$f":"[1]Sheet1!D12","v":0}]
[{"$f":"[1]Sheet1!A13","v":"Bear Hug Campfire 30"},{"$f":"[1]Sheet1!B13","v":"Ad Council"},{"$f":"[1]Sheet1!D13","v":0}]
[{"$f":"[1]Sheet1!A14","v":"Bear Hug Campfire 60"},{"$f":"[1]Sheet1!B14","v":"Ad Council"},{"$f":"[1]Sheet1!D14","v":0}]
[{"$f":"[1]Sheet1!A15","v":"Bento 30"},{"$f":"[1]Sheet1!B15","v":"Ad Council"},{"$f":"[1]Sheet1!D15","v":0}]
[{"$f":"[1]Sheet1!A16","v":"Best In Show Cat 30"},{"$f":"[1]Sheet1!B16","v":"Ad Council"},{"$f":"[1]Sheet1!D16","v":0}]
[{"$f":"[1]Sheet1!A17","v":"Best In Show Cat 60"},{"$f":"[1]Sheet1!B17","v":"Ad Council"},{"$f":"[1]Sheet1!D17","v":0}]
[{"$f":"[1]Sheet1!A18","v":"Best In Show Dog 30"},{"$f":"[1]Sheet1!B18","v":"Ad Council"},{"$f":"[1]Sheet1!D18","v":0}]
[{"$f":"[1]Sheet1!A19","v":"Best In Show Dog 60"},{"$f":"[1]Sheet1!B19","v":"Ad Council"},{"$f":"[1]Sheet1!D19","v":0}]
[{"$f":"[1]Sheet1!A20","v":"Best vs Standard 30"},{"$f":"[1]Sheet1!B20","v":"Ad Council"},{"$f":"[1]Sheet1!D20","v":0}]
[{"$f":"[1]Sheet1!A21","v":"Boss Baby 30"},{"$f":"[1]Sheet1!B21","v":"Ad Council"},{"$f":"[1]Sheet1!D21","v":0}]
[{"$f":"[1]Sheet1!A22","v":"Breakup 60"},{"$f":"[1]Sheet1!B22","v":"Ad Council"},{"$f":"[1]Sheet1!D22","v":0}]
[{"$f":"[1]Sheet1!A23","v":"CarAce 30"},{"$f":"[1]Sheet1!B23","v":"Ad Council"},{"$f":"[1]Sheet1!D23","v":0}]
[{"$f":"[1]Sheet1!A24","v":"Caregiver to Mom 30"},{"$f":"[1]Sheet1!B24","v":"Ad Council"},{"$f":"[1]Sheet1!D24","v":0}]
[{"$f":"[1]Sheet1!A25","v":"Caregiver to Mom 60"},{"$f":"[1]Sheet1!B25","v":"Ad Council"},{"$f":"[1]Sheet1!D25","v":0}]
[{"$f":"[1]Sheet1!A26","v":"Cellphone 30"},{"$f":"[1]Sheet1!B26","v":"Ad Council"},{"$f":"[1]Sheet1!D26","v":0}]
[{"$f":"[1]Sheet1!A27","v":"Chance 60"},{"$f":"[1]Sheet1!B27","v":"Ad Council"},{"$f":"[1]Sheet1!D27","v":0}]
[{"$f":"[1]Sheet1!A28","v":"Change of Plans 30"},{"$f":"[1]Sheet1!B28","v":"Ad Council"},{"$f":"[1]Sheet1!D28","v":0}]
[{"$f":"[1]Sheet1!A29","v":"Click 30"},{"$f":"[1]Sheet1!B29","v":"Ad Council"},{"$f":"[1]Sheet1!D29","v":0}]
[{"$f":"[1]Sheet1!A30","v":"Click 60"},{"$f":"[1]Sheet1!B30","v":"Ad Council"},{"$f":"[1]Sheet1!D30","v":0}]
[{"$f":"[1]Sheet1!A31","v":"Concert 30"},{"$f":"[1]Sheet1!B31","v":"Ad Council"},{"$f":"[1]Sheet1!D31","v":0}]
[{"$f":"[1]Sheet1!A32","v":"Concert 60"},{"$f":"[1]Sheet1!B32","v":"Ad Council"},{"$f":"[1]Sheet1!D32","v":0}]
[{"$f":"[1]Sheet1!A33","v":"DanicaPatrick 30"},{"$f":"[1]Sheet1!B33","v":"Ad Council"},{"$f":"[1]Sheet1!D33","v":0}]
[{"$f":"[1]Sheet1!A34","v":"DanicaPatrick 60"},{"$f":"[1]Sheet1!B34","v":"Ad Council"},{"$f":"[1]Sheet1!D34","v":0}]
[{"$f":"[1]Sheet1!A35","v":"Designer Jeans 30"},{"$f":"[1]Sheet1!B35","v":"Ad Council"},{"$f":"[1]Sheet1!D35","v":0}]
[{"$f":"[1]Sheet1!A36","v":"Designer Jeans 60"},{"$f":"[1]Sheet1!B36","v":"Ad Council"},{"$f":"[1]Sheet1!D36","v":0}]
[{"$f":"[1]Sheet1!A37","v":"Dont Wait-Earthquake 30"},{"$f":"[1]Sheet1!B37","v":"Ad Council"},{"$f":"[1]Sheet1!D37","v":0}]
[{"$f":"[1]Sheet1!A38","v":"Dont Wait-Tornado 30"},{"$f":"[1]Sheet1!B38","v":"Ad Council"},{"$f":"[1]Sheet1!D38","v":0}]
[{"$f":"[1]Sheet1!A39","v":"Dont Wait-Wildfire 30"},{"$f":"[1]Sheet1!B39","v":"Ad Council"},{"$f":"[1]Sheet1!D39","v":0}]
[{"$f":"[1]Sheet1!A40","v":"Dont Wait 30"},{"$f":"[1]Sheet1!B40","v":"Ad Council"},{"$f":"[1]Sheet1!D40","v":0}]
[{"$f":"[1]Sheet1!A41","v":"Dont Wait 60"},{"$f":"[1]Sheet1!B41","v":"Ad Council"},{"$f":"[1]Sheet1!D41","v":0}]
[{"$f":"[1]Sheet1!A42","v":"Dr Phil 30"},{"$f":"[1]Sheet1!B42","v":"Ad Council"},{"$f":"[1]Sheet1!D42","v":0}]
[{"$f":"[1]Sheet1!A43","v":"Dr Phil 60"},{"$f":"[1]Sheet1!B43","v":"Ad Council"},{"$f":"[1]Sheet1!D43","v":0}]
[{"$f":"[1]Sheet1!A44","v":"Driving Blind 30"},{"$f":"[1]Sheet1!B44","v":"Ad Council"},{"$f":"[1]Sheet1!D44","v":0}]
[{"$f":"[1]Sheet1!A45","v":"Driving Means 30"},{"$f":"[1]Sheet1!B45","v":"Ad Council"},{"$f":"[1]Sheet1!D45","v":0}]
[{"$f":"[1]Sheet1!A46","v":"Driving Sounds 30"},{"$f":"[1]Sheet1!B46","v":"Ad Council"},{"$f":"[1]Sheet1!D46","v":0}]
[{"$f":"[1]Sheet1!A47","v":"Expensive Night 60"},{"$f":"[1]Sheet1!B47","v":"Ad Council"},{"$f":"[1]Sheet1!D47","v":0}]
[{"$f":"[1]Sheet1!A48","v":"Feather 30"},{"$f":"[1]Sheet1!B48","v":"Ad Council"},{"$f":"[1]Sheet1!D48","v":0}]
[{"$f":"[1]Sheet1!A49","v":"Forest Animals 30"},{"$f":"[1]Sheet1!B49","v":"Ad Council"},{"$f":"[1]Sheet1!D49","v":0}]
[{"$f":"[1]Sheet1!A50","v":"Forest Animals 60"},{"$f":"[1]Sheet1!B50","v":"Ad Council"},{"$f":"[1]Sheet1!D50","v":0}]
[{"$f":"[1]Sheet1!A51","v":"Forest Benefits 30"},{"$f":"[1]Sheet1!B51","v":"Ad Council"},{"$f":"[1]Sheet1!D51","v":0}]
[{"$f":"[1]Sheet1!A52","v":"Forest Benefits 60"},{"$f":"[1]Sheet1!B52","v":"Ad Council"},{"$f":"[1]Sheet1!D52","v":0}]
[{"$f":"[1]Sheet1!A53","v":"Full Circle 30"},{"$f":"[1]Sheet1!B53","v":"Ad Council"},{"$f":"[1]Sheet1!D53","v":0}]
[{"$f":"[1]Sheet1!A54","v":"Full Circle 60"},{"$f":"[1]Sheet1!B54","v":"Ad Council"},{"$f":"[1]Sheet1!D54","v":0}]
[{"$f":"[1]Sheet1!A55","v":"Gift to Future Me 60"},{"$f":"[1]Sheet1!B55","v":"Ad Council"},{"$f":"[1]Sheet1!D55","v":0}]
[{"$f":"[1]Sheet1!A56","v":"GPS 30"},{"$f":"[1]Sheet1!B56","v":"Ad Council"},{"$f":"[1]Sheet1!D56","v":0}]
[{"$f":"[1]Sheet1!A57","v":"Groan 30"},{"$f":"[1]Sheet1!B57","v":"Ad Council"},{"$f":"[1]Sheet1!D57","v":0}]
[{"$f":"[1]Sheet1!A58","v":"Groan 60"},{"$f":"[1]Sheet1!B58","v":"Ad Council"},{"$f":"[1]Sheet1!D58","v":0}]
[{"$f":"[1]Sheet1!A59","v":"Grown Up 30"},{"$f":"[1]Sheet1!B59","v":"Ad Council"},{"$f":"[1]Sheet1!D59","v":0}]
[{"$f":"[1]Sheet1!A60","v":"Grown Up 60"},{"$f":"[1]Sheet1!B60","v":"Ad Council"},{"$f":"[1]Sheet1!D60","v":0}]
[{"$f":"[1]Sheet1!A61","v":"Guys Night Out-Moment 30"},{"$f":"[1]Sheet1!B61","v":"Ad Council"},{"$f":"[1]Sheet1!D61","v":0}]
[{"$f":"[1]Sheet1!A62","v":"Haircut 30"},{"$f":"[1]Sheet1!B62","v":"Ad Council"},{"$f":"[1]Sheet1!D62","v":0}]
[{"$f":"[1]Sheet1!A63","v":"Haircut 60"},{"$f":"[1]Sheet1!B63","v":"Ad Council"},{"$f":"[1]Sheet1!D63","v":0}]
[{"$f":"[1]Sheet1!A64","v":"Hamilton 30"},{"$f":"[1]Sheet1!B64","v":"Ad Council"},{"$f":"[1]Sheet1!D64","v":0}]
[{"$f":"[1]Sheet1!A65","v":"HouseAce 30"},{"$f":"[1]Sheet1!B65","v":"Ad Council"},{"$f":"[1]Sheet1!D65","v":0}]
[{"$f":"[1]Sheet1!A66","v":"How We Do It 60"},{"$f":"[1]Sheet1!B66","v":"Ad Council"},{"$f":"[1]Sheet1!D66","v":0}]
[{"$f":"[1]Sheet1!A67","v":"I know 30"},{"$f":"[1]Sheet1!B67","v":"Ad Council"},{"$f":"[1]Sheet1!D67","v":0}]
[{"$f":"[1]Sheet1!A68","v":"I want to be 30"},{"$f":"[1]Sheet1!B68","v":"Ad Council"},{"$f":"[1]Sheet1!D68","v":0}]
[{"$f":"[1]Sheet1!A69","v":"I want to be 60"},{"$f":"[1]Sheet1!B69","v":"Ad Council"},{"$f":"[1]Sheet1!D69","v":0}]
[{"$f":"[1]Sheet1!A70","v":"In Their Own Words 30"},{"$f":"[1]Sheet1!B70","v":"Ad Council"},{"$f":"[1]Sheet1!D70","v":0}]
[{"$f":"[1]Sheet1!A71","v":"In Their Own Words 60"},{"$f":"[1]Sheet1!B71","v":"Ad Council"},{"$f":"[1]Sheet1!D71","v":0}]
[{"$f":"[1]Sheet1!A72","v":"Indoor Baseball 30"},{"$f":"[1]Sheet1!B72","v":"Ad Council"},{"$f":"[1]Sheet1!D72","v":0}]
[{"$f":"[1]Sheet1!A73","v":"Inside the Mind 30"},{"$f":"[1]Sheet1!B73","v":"Ad Council"},{"$f":"[1]Sheet1!D73","v":0}]
[{"$f":"[1]Sheet1!A74","v":"Inside the Mind 60"},{"$f":"[1]Sheet1!B74","v":"Ad Council"},{"$f":"[1]Sheet1!D74","v":0}]
[{"$f":"[1]Sheet1!A75","v":"Josh Groban 30"},{"$f":"[1]Sheet1!B75","v":"Ad Council"},{"$f":"[1]Sheet1!D75","v":0}]
[{"$f":"[1]Sheet1!A76","v":"Josh Groban 60"},{"$f":"[1]Sheet1!B76","v":"Ad Council"},{"$f":"[1]Sheet1!D76","v":0}]
[{"$f":"[1]Sheet1!A77","v":"Julius Randle Reverse 60"},{"$f":"[1]Sheet1!B77","v":"Ad Council"},{"$f":"[1]Sheet1!D77","v":0}]
[{"$f":"[1]Sheet1!A78","v":"Leash 30"},{"$f":"[1]Sheet1!B78","v":"Ad Council"},{"$f":"[1]Sheet1!D78","v":0}]
[{"$f":"[1]Sheet1!A79","v":"Let Me Ask You 30"},{"$f":"[1]Sheet1!B79","v":"Ad Council"},{"$f":"[1]Sheet1!D79","v":0}]
[{"$f":"[1]Sheet1!A80","v":"Listen 30"},{"$f":"[1]Sheet1!B80","v":"Ad Council"},{"$f":"[1]Sheet1!D80","v":0}]
[{"$f":"[1]Sheet1!A81","v":"Listen 60"},{"$f":"[1]Sheet1!B81","v":"Ad Council"},{"$f":"[1]Sheet1!D81","v":0}]
[{"$f":"[1]Sheet1!A82","v":"Long Haul 30"},{"$f":"[1]Sheet1!B82","v":"Ad Council"},{"$f":"[1]Sheet1!D82","v":0}]
[{"$f":"[1]Sheet1!A83","v":"Look Down 30"},{"$f":"[1]Sheet1!B83","v":"Ad Council"},{"$f":"[1]Sheet1!D83","v":0}]
[{"$f":"[1]Sheet1!A84","v":"Lucky 60"},{"$f":"[1]Sheet1!B84","v":"Ad Council"},{"$f":"[1]Sheet1!D84","v":0}]
[{"$f":"[1]Sheet1!A85","v":"Lucky 30"},{"$f":"[1]Sheet1!B85","v":"Ad Council"},{"$f":"[1]Sheet1!D85","v":0}]
[{"$f":"[1]Sheet1!A86","v":"Missed Opportunity 60"},{"$f":"[1]Sheet1!B86","v":"Ad Council"},{"$f":"[1]Sheet1!D86","v":0}]
[{"$f":"[1]Sheet1!A87","v":"Moments 30"},{"$f":"[1]Sheet1!B87","v":"Ad Council"},{"$f":"[1]Sheet1!D87","v":0}]
[{"$f":"[1]Sheet1!A88","v":"Moments 60"},{"$f":"[1]Sheet1!B88","v":"Ad Council"},{"$f":"[1]Sheet1!D88","v":0}]
[{"$f":"[1]Sheet1!A89","v":"One More 30"},{"$f":"[1]Sheet1!B89","v":"Ad Council"},{"$f":"[1]Sheet1!D89","v":0}]
[{"$f":"[1]Sheet1!A90","v":"Online Dating 30"},{"$f":"[1]Sheet1!B90","v":"Ad Council"},{"$f":"[1]Sheet1!D90","v":0}]
[{"$f":"[1]Sheet1!A91","v":"Only in the forest 60"},{"$f":"[1]Sheet1!B91","v":"Ad Council"},{"$f":"[1]Sheet1!D91","v":0}]
[{"$f":"[1]Sheet1!A92","v":"Overconfidence 30"},{"$f":"[1]Sheet1!B92","v":"Ad Council"},{"$f":"[1]Sheet1!D92","v":0}]
[{"$f":"[1]Sheet1!A93","v":"Overconfidence 60"},{"$f":"[1]Sheet1!B93","v":"Ad Council"},{"$f":"[1]Sheet1!D93","v":0}]
[{"$f":"[1]Sheet1!A94","v":"Passengers 30"},{"$f":"[1]Sheet1!B94","v":"Ad Council"},{"$f":"[1]Sheet1!D94","v":0}]
[{"$f":"[1]Sheet1!A95","v":"Pavlov Purpose 30"},{"$f":"[1]Sheet1!B95","v":"Ad Council"},{"$f":"[1]Sheet1!D95","v":0}]
[{"$f":"[1]Sheet1!A96","v":"Pavlov Purpose 60"},{"$f":"[1]Sheet1!B96","v":"Ad Council"},{"$f":"[1]Sheet1!D96","v":0}]
[{"$f":"[1]Sheet1!A97","v":"Pets Anthem 30"},{"$f":"[1]Sheet1!B97","v":"Ad Council"},{"$f":"[1]Sheet1!D97","v":0}]
[{"$f":"[1]Sheet1!A98","v":"Pets Anthem 60"},{"$f":"[1]Sheet1!B98","v":"Ad Council"},{"$f":"[1]Sheet1!D98","v":0}]
[{"$f":"[1]Sheet1!A99","v":"Pool Party 30"},{"$f":"[1]Sheet1!B99","v":"Ad Council"},{"$f":"[1]Sheet1!D99","v":0}]
[{"$f":"[1]Sheet1!A100","v":"Power Suit 60"},{"$f":"[1]Sheet1!B100","v":"Ad Council"},{"$f":"[1]Sheet1!D100","v":0}]
[{"$f":"[1]Sheet1!A101","v":"Prediabetes Test 30"},{"$f":"[1]Sheet1!B101","v":"Ad Council"},{"$f":"[1]Sheet1!D101","v":0}]
[{"$f":"[1]Sheet1!A102","v":"Prediabetes Test 60"},{"$f":"[1]Sheet1!B102","v":"Ad Council"},{"$f":"[1]Sheet1!D102","v":0}]
[{"$f":"[1]Sheet1!A103","v":"Prom 60"},{"$f":"[1]Sheet1!B103","v":"Ad Council"},{"$f":"[1]Sheet1!D103","v":0}]
[{"$f":"[1]Sheet1!A104","v":"Rachael Ray 30"},{"$f":"[1]Sheet1!B104","v":"Ad Council"},{"$f":"[1]Sheet1!D104","v":0}]
[{"$f":"[1]Sheet1!A105","v":"Rachael Ray 60"},{"$f":"[1]Sheet1!B105","v":"Ad Council"},{"$f":"[1]Sheet1!D105","v":0}]
[{"$f":"[1]Sheet1!A106","v":"Reba McEntire 30"},{"$f":"[1]Sheet1!B106","v":"Ad Council"},{"$f":"[1]Sheet1!D106","v":0}]
[{"$f":"[1]Sheet1!A107","v":"Reba McEntire 60"},{"$f":"[1]Sheet1!B107","v":"Ad Council"},{"$f":"[1]Sheet1!D107","v":0}]
[{"$f":"[1]Sheet1!A108","v":"Redwoods 30"},{"$f":"[1]Sheet1!B108","v":"Ad Council"},{"$f":"[1]Sheet1!D108","v":0}]
[{"$f":"[1]Sheet1!A109","v":"Redwoods 60"},{"$f":"[1]Sheet1!B109","v":"Ad Council"},{"$f":"[1]Sheet1!D109","v":0}]
[{"$f":"[1]Sheet1!A110","v":"Rich 60"},{"$f":"[1]Sheet1!B110","v":"Ad Council"},{"$f":"[1]Sheet1!D110","v":0}]
[{"$f":"[1]Sheet1!A111","v":"Rich Uncle 60"},{"$f":"[1]Sheet1!B111","v":"Ad Council"},{"$f":"[1]Sheet1!D111","v":0}]
[{"$f":"[1]Sheet1!A112","v":"Rising Ashes-Chains 30"},{"$f":"[1]Sheet1!B112","v":"Ad Council"},{"$f":"[1]Sheet1!D112","v":0}]
[{"$f":"[1]Sheet1!A113","v":"Rising Ashes-Chains 60"},{"$f":"[1]Sheet1!B113","v":"Ad Council"},{"$f":"[1]Sheet1!D113","v":0}]
[{"$f":"[1]Sheet1!A114","v":"Rising Ashes-Fire Pit 30"},{"$f":"[1]Sheet1!B114","v":"Ad Council"},{"$f":"[1]Sheet1!D114","v":0}]
[{"$f":"[1]Sheet1!A115","v":"Rising Ashes-Fire Pit 60"},{"$f":"[1]Sheet1!B115","v":"Ad Council"},{"$f":"[1]Sheet1!D115","v":0}]
[{"$f":"[1]Sheet1!A116","v":"Rock Tshirt 30"},{"$f":"[1]Sheet1!B116","v":"Ad Council"},{"$f":"[1]Sheet1!D116","v":0}]
[{"$f":"[1]Sheet1!A117","v":"Rockstar 60"},{"$f":"[1]Sheet1!B117","v":"Ad Council"},{"$f":"[1]Sheet1!D117","v":0}]
[{"$f":"[1]Sheet1!A118","v":"Sense of Adventure 30"},{"$f":"[1]Sheet1!B118","v":"Ad Council"},{"$f":"[1]Sheet1!D118","v":0}]
[{"$f":"[1]Sheet1!A119","v":"Sense of Adventure 60"},{"$f":"[1]Sheet1!B119","v":"Ad Council"},{"$f":"[1]Sheet1!D119","v":0}]
[{"$f":"[1]Sheet1!A120","v":"Short Drive 30"},{"$f":"[1]Sheet1!B120","v":"Ad Council"},{"$f":"[1]Sheet1!D120","v":0}]
[{"$f":"[1]Sheet1!A121","v":"Short Drive 60"},{"$f":"[1]Sheet1!B121","v":"Ad Council"},{"$f":"[1]Sheet1!D121","v":0}]
[{"$f":"[1]Sheet1!A122","v":"Short Shorts 30"},{"$f":"[1]Sheet1!B122","v":"Ad Council"},{"$f":"[1]Sheet1!D122","v":0}]
[{"$f":"[1]Sheet1!A123","v":"Short Shorts 60"},{"$f":"[1]Sheet1!B123","v":"Ad Council"},{"$f":"[1]Sheet1!D123","v":0}]
[{"$f":"[1]Sheet1!A124","v":"Show and Tell 30"},{"$f":"[1]Sheet1!B124","v":"Ad Council"},{"$f":"[1]Sheet1!D124","v":0}]
[{"$f":"[1]Sheet1!A125","v":"Show and Tell 60"},{"$f":"[1]Sheet1!B125","v":"Ad Council"},{"$f":"[1]Sheet1!D125","v":0}]
[{"$f":"[1]Sheet1!A126","v":"Slo-Mo 30"},{"$f":"[1]Sheet1!B126","v":"Ad Council"},{"$f":"[1]Sheet1!D126","v":0}]
[{"$f":"[1]Sheet1!A127","v":"Smiles 30"},{"$f":"[1]Sheet1!B127","v":"Ad Council"},{"$f":"[1]Sheet1!D127","v":0}]
[{"$f":"[1]Sheet1!A128","v":"Smiles 60"},{"$f":"[1]Sheet1!B128","v":"Ad Council"},{"$f":"[1]Sheet1!D128","v":0}]
[{"$f":"[1]Sheet1!A129","v":"Stuntman 30"},{"$f":"[1]Sheet1!B129","v":"Ad Council"},{"$f":"[1]Sheet1!D129","v":0}]
[{"$f":"[1]Sheet1!A130","v":"Stuntman 60"},{"$f":"[1]Sheet1!B130","v":"Ad Council"},{"$f":"[1]Sheet1!D130","v":0}]
[{"$f":"[1]Sheet1!A131","v":"Super Buddies Experience 30"},{"$f":"[1]Sheet1!B131","v":"Ad Council"},{"$f":"[1]Sheet1!D131","v":0}]
[{"$f":"[1]Sheet1!A132","v":"Surprise You 30"},{"$f":"[1]Sheet1!B132","v":"Ad Council"},{"$f":"[1]Sheet1!D132","v":0}]
[{"$f":"[1]Sheet1!A133","v":"Taxi 30"},{"$f":"[1]Sheet1!B133","v":"Ad Council"},{"$f":"[1]Sheet1!D133","v":0}]
[{"$f":"[1]Sheet1!A134","v":"Taxi 60"},{"$f":"[1]Sheet1!B134","v":"Ad Council"},{"$f":"[1]Sheet1!D134","v":0}]
[{"$f":"[1]Sheet1!A135","v":"Tea Pot-Moment 30"},{"$f":"[1]Sheet1!B135","v":"Ad Council"},{"$f":"[1]Sheet1!D135","v":0}]
[{"$f":"[1]Sheet1!A136","v":"The Probablys 60"},{"$f":"[1]Sheet1!B136","v":"Ad Council"},{"$f":"[1]Sheet1!D136","v":0}]
[{"$f":"[1]Sheet1!A137","v":"There Yet 30"},{"$f":"[1]Sheet1!B137","v":"Ad Council"},{"$f":"[1]Sheet1!D137","v":0}]
[{"$f":"[1]Sheet1!A138","v":"There Yet 60"},{"$f":"[1]Sheet1!B138","v":"Ad Council"},{"$f":"[1]Sheet1!D138","v":0}]
[{"$f":"[1]Sheet1!A139","v":"Tickle Fight 30"},{"$f":"[1]Sheet1!B139","v":"Ad Council"},{"$f":"[1]Sheet1!D139","v":0}]
[{"$f":"[1]Sheet1!A140","v":"Toast 30"},{"$f":"[1]Sheet1!B140","v":"Ad Council"},{"$f":"[1]Sheet1!D140","v":0}]
[{"$f":"[1]Sheet1!A141","v":"Tougher than Tough 30"},{"$f":"[1]Sheet1!B141","v":"Ad Council"},{"$f":"[1]Sheet1!D141","v":0}]
[{"$f":"[1]Sheet1!A142","v":"Tougher than Tough 60"},{"$f":"[1]Sheet1!B142","v":"Ad Council"},{"$f":"[1]Sheet1!D142","v":0}]
[{"$f":"[1]Sheet1!A143","v":"Toys 30"},{"$f":"[1]Sheet1!B143","v":"Ad Council"},{"$f":"[1]Sheet1!D143","v":0}]
[{"$f":"[1]Sheet1!A144","v":"Tune Out 30"},{"$f":"[1]Sheet1!B144","v":"Ad Council"},{"$f":"[1]Sheet1!D144","v":0}]
[{"$f":"[1]Sheet1!A145","v":"Wed Do Anything 30"},{"$f":"[1]Sheet1!B145","v":"Ad Council"},{"$f":"[1]Sheet1!D145","v":0}]
[{"$f":"[1]Sheet1!A146","v":"Wed Do Anything 60"},{"$f":"[1]Sheet1!B146","v":"Ad Council"},{"$f":"[1]Sheet1!D146","v":0}]
[{"$f":"[1]Sheet1!A147","v":"You Do So Much 30"},{"$f":"[1]Sheet1!B147","v":"Ad Council"},{"$f":"[1]Sheet1!D147","v":0}]
[{"$f":"[1]Sheet1!A148","v":"You Do So Much 60"},{"$f":"[1]Sheet1!B148","v":"Ad Council"},{"$f":"[1]Sheet1!D148","v":0}]
[{"$f":"[1]Sheet1!A149","v":"Alcohol Sexual Assault"},{"$f":"[1]Sheet1!B149","v":"Ascertainment"},{"$f":"[1]Sheet1!D149","v":"This is an ascertainment about sexual assault caused by alcohol."}]
[{"$f":"[1]Sheet1!A150","v":"Band Ascertainment"},{"$f":"[1]Sheet1!B150","v":"Ascertainment"},{"$f":"[1]Sheet1!D150","v":"This is an ascertainment about the band and music programs available to Missouri S&T students."}]
[{"$f":"[1]Sheet1!A151","v":"Bowling"},{"$f":"[1]Sheet1!B151","v":"Ascertainment"},{"$f":"[1]Sheet1!D151","v":"This is an ascertainment about somes benefits and tips on bowling."}]
[{"$f":"[1]Sheet1!A152","v":"Climbing Club"},{"$f":"[1]Sheet1!B152","v":"Ascertainment"},{"$f":"[1]Sheet1!D152","v":"This is an ascertainment about the Missouri S&T Climbing Club."}]
[{"$f":"[1]Sheet1!A153","v":"Condoms-ASC"},{"$f":"[1]Sheet1!B153","v":"Ascertainment"},{"$f":"[1]Sheet1!D153","v":"This is an ascertainment about condoms."}]
[{"$f":"[1]Sheet1!A154","v":"Curbside Recycling I"},{"$f":"[1]Sheet1!B154","v":"Ascertainment"},{"$f":"[1]Sheet1!D154","v":"This is an ascertainment about curbside recycling."}]
[{"$f":"[1]Sheet1!A155","v":"Curbside Recycling II"},{"$f":"[1]Sheet1!B155","v":"Ascertainment"},{"$f":"[1]Sheet1!D155","v":"This is an ascertainment about curbside recycling."}]
[{"$f":"[1]Sheet1!A156","v":"Dags"},{"$f":"[1]Sheet1!B156","v":"Ascertainment"},{"$f":"[1]Sheet1!D156","v":"This is an ascertainment about dags."}]
[{"$f":"[1]Sheet1!A157","v":"Dont Be A Stalker"},{"$f":"[1]Sheet1!B157","v":"Ascertainment"},{"$f":"[1]Sheet1!D157","v":"This is an ascertainment about why you shouldn't stalk people."}]
[{"$f":"[1]Sheet1!A158","v":"Earthquake Safety"},{"$f":"[1]Sheet1!B158","v":"Ascertainment"},{"$f":"[1]Sheet1!D158","v":"This is an ascertainment about how to be safe during an earthquake."}]
[{"$f":"[1]Sheet1!A159","v":"Electric Car"},{"$f":"[1]Sheet1!B159","v":"Ascertainment"},{"$f":"[1]Sheet1!D159","v":"This is an ascertainment about the Missouri S&T Design Team, Formula Electric."}]
[{"$f":"[1]Sheet1!A160","v":"Freshman 50"},{"$f":"[1]Sheet1!B160","v":"Ascertainment"},{"$f":"[1]Sheet1!D160","v":"This is an ascertainment about to lose weight at college."}]
[{"$f":"[1]Sheet1!A161","v":"Freshmen Homesickness"},{"$f":"[1]Sheet1!B161","v":"Ascertainment"},{"$f":"[1]Sheet1!D161","v":"This is an ascertainment about how to get over homesickness your freshman year of college."}]
[{"$f":"[1]Sheet1!A162","v":"Frisbeegolf"},{"$f":"[1]Sheet1!B162","v":"Ascertainment"},{"$f":"[1]Sheet1!D162","v":"This is an ascertainment about the Lion's Club Frisbeegolf Course in Rolla."}]
[{"$f":"[1]Sheet1!A163","v":"FSAE Racing Team"},{"$f":"[1]Sheet1!B163","v":"Ascertainment"},{"$f":"[1]Sheet1!D163","v":"This is an ascertainment about the Missouri S&T FSAE Racing Team."}]
[{"$f":"[1]Sheet1!A164","v":"Go Outside"},{"$f":"[1]Sheet1!B164","v":"Ascertainment"},{"$f":"[1]Sheet1!D164","v":"This is an ascertainment about leaving your dorm room and living life at Missouri S&T."}]
[{"$f":"[1]Sheet1!A165","v":"Habitat for Humanity I"},{"$f":"[1]Sheet1!B165","v":"Ascertainment"},{"$f":"[1]Sheet1!D165","v":"This is an ascertainment about the Habitat of Humanity."}]
[{"$f":"[1]Sheet1!A166","v":"Habitat for Humanity II"},{"$f":"[1]Sheet1!B166","v":"Ascertainment"},{"$f":"[1]Sheet1!D166","v":"This is an ascertainment about the Habitat of Humanity."}]
[{"$f":"[1]Sheet1!A167","v":"Info On International Students"},{"$f":"[1]Sheet1!B167","v":"Ascertainment"},{"$f":"[1]Sheet1!D167","v":"This is an ascertainment about international students."}]
[{"$f":"[1]Sheet1!A168","v":"International Student Perspective"},{"$f":"[1]Sheet1!B168","v":"Ascertainment"},{"$f":"[1]Sheet1!D168","v":"This is an ascertainment about different perspectives of International Students at Missouri S&T."}]
[{"$f":"[1]Sheet1!A169","v":"LEAD"},{"$f":"[1]Sheet1!B169","v":"Ascertainment"},{"$f":"[1]Sheet1!D169","v":"This is an ascertainment about going to LEAD sessions at Missouri S&T."}]
[{"$f":"[1]Sheet1!A170","v":"Loitering"},{"$f":"[1]Sheet1!B170","v":"Ascertainment"},{"$f":"[1]Sheet1!D170","v":"This is an ascertainment about not loitering at places around Rolla."}]
[{"$f":"[1]Sheet1!A171","v":"Lyme Disease"},{"$f":"[1]Sheet1!B171","v":"Ascertainment"},{"$f":"[1]Sheet1!D171","v":"This is an ascertainment about the facts of Lyme Disease."}]
[{"$f":"[1]Sheet1!A172","v":"Mailbox Decapitation"},{"$f":"[1]Sheet1!B172","v":"Ascertainment"},{"$f":"[1]Sheet1!D172","v":"This is an ascertainment about how to avoid mailbox decapitation."}]
[{"$f":"[1]Sheet1!A173","v":"Marijuana"},{"$f":"[1]Sheet1!B173","v":"Ascertainment"},{"$f":"[1]Sheet1!D173","v":"This is an ascertainment about marijuana."}]
[{"$f":"[1]Sheet1!A174","v":"Miners In Space"},{"$f":"[1]Sheet1!B174","v":"Ascertainment"},{"$f":"[1]Sheet1!D174","v":"This is an ascertainment about miners in space."}]
[{"$f":"[1]Sheet1!A175","v":"Missouri caves"},{"$f":"[1]Sheet1!B175","v":"Ascertainment"},{"$f":"[1]Sheet1!D175","v":"This is an ascertainment about the caves in Missouri."}]
[{"$f":"[1]Sheet1!A176","v":"MST Music"},{"$f":"[1]Sheet1!B176","v":"Ascertainment"},{"$f":"[1]Sheet1!D176","v":"This is an ascertainment about the music programs offered at Missouri S&T."}]
[{"$f":"[1]Sheet1!A177","v":"MSTRecCenter"},{"$f":"[1]Sheet1!B177","v":"Ascertainment"},{"$f":"[1]Sheet1!D177","v":"This is an ascertainment about the recreation center at Missouri S&T."}]
[{"$f":"[1]Sheet1!A178","v":"Nature Conservation"},{"$f":"[1]Sheet1!B178","v":"Ascertainment"},{"$f":"[1]Sheet1!D178","v":"This is an ascertainment about consveration and nature."}]
[{"$f":"[1]Sheet1!A179","v":"Open Container Law"},{"$f":"[1]Sheet1!B179","v":"Ascertainment"},{"$f":"[1]Sheet1!D179","v":"This is an ascertainment about open container laws."}]
[{"$f":"[1]Sheet1!A180","v":"Recycling"},{"$f":"[1]Sheet1!B180","v":"Ascertainment"},{"$f":"[1]Sheet1!D180","v":"This is an ascertainment about recycling."}]
[{"$f":"[1]Sheet1!A181","v":"Rolla Animal Shelter I"},{"$f":"[1]Sheet1!B181","v":"Ascertainment"},{"$f":"[1]Sheet1!D181","v":"This is an ascertainment about the Rolla Animal Shelter."}]
[{"$f":"[1]Sheet1!A182","v":"Rolla Animal Shelter II"},{"$f":"[1]Sheet1!B182","v":"Ascertainment"},{"$f":"[1]Sheet1!D182","v":"This is an ascertainment about the Rolla Animal Shelter."}]
[{"$f":"[1]Sheet1!A183","v":"Rolla Leash Laws"},{"$f":"[1]Sheet1!B183","v":"Ascertainment"},{"$f":"[1]Sheet1!D183","v":"This is an ascertainment about the leash laws in Rolla."}]
[{"$f":"[1]Sheet1!A184","v":"Rolla Parks"},{"$f":"[1]Sheet1!B184","v":"Ascertainment"},{"$f":"[1]Sheet1!D184","v":"This is an ascertainment about parks in Rolla."}]
[{"$f":"[1]Sheet1!A185","v":"Rolla Public Library I"},{"$f":"[1]Sheet1!B185","v":"Ascertainment"},{"$f":"[1]Sheet1!D185","v":"This is an ascertainment about the Rolla public library."}]
[{"$f":"[1]Sheet1!A186","v":"Rolla Public Library II"},{"$f":"[1]Sheet1!B186","v":"Ascertainment"},{"$f":"[1]Sheet1!D186","v":"This is an ascertainment about the Rolla public library."}]
[{"$f":"[1]Sheet1!A187","v":"Rolla Rural Fire"},{"$f":"[1]Sheet1!B187","v":"Ascertainment"},{"$f":"[1]Sheet1!D187","v":"This is an ascertainment about Rolla rural fires."}]
[{"$f":"[1]Sheet1!A188","v":"Rollanet"},{"$f":"[1]Sheet1!B188","v":"Ascertainment"},{"$f":"[1]Sheet1!D188","v":"This is an ascertainment about Rollanet."}]
[{"$f":"[1]Sheet1!A189","v":"Rotary Club"},{"$f":"[1]Sheet1!B189","v":"Ascertainment"},{"$f":"[1]Sheet1!D189","v":"This is an ascertainment about Rotary Club at Missouri S&T."}]
[{"$f":"[1]Sheet1!A190","v":"Russell House"},{"$f":"[1]Sheet1!B190","v":"Ascertainment"},{"$f":"[1]Sheet1!D190","v":"This is an ascertainment about Russell House."}]
[{"$f":"[1]Sheet1!A191","v":"S&T Golf Course"},{"$f":"[1]Sheet1!B191","v":"Ascertainment"},{"$f":"[1]Sheet1!D191","v":"This is an ascertainment about the Missouri S&T golf course."}]
[{"$f":"[1]Sheet1!A192","v":"senior companions"},{"$f":"[1]Sheet1!B192","v":"Ascertainment"},{"$f":"[1]Sheet1!D192","v":"This is an ascertainment about Phelps County Senior Companions"}]
[{"$f":"[1]Sheet1!A193","v":"Severe Weather Safety Tips"},{"$f":"[1]Sheet1!B193","v":"Ascertainment"},{"$f":"[1]Sheet1!D193","v":"This is an ascertainment about Severe Weather Safety Tips"}]
[{"$f":"[1]Sheet1!A194","v":"Skatepark"},{"$f":"[1]Sheet1!B194","v":"Ascertainment"},{"$f":"[1]Sheet1!D194","v":"This is an ascertainment about the Rolla Skatepark."}]
[{"$f":"[1]Sheet1!A195","v":"Sports Programs"},{"$f":"[1]Sheet1!B195","v":"Ascertainment"},{"$f":"[1]Sheet1!D195","v":"This is an ascertainment about Rolla sports programs."}]
[{"$f":"[1]Sheet1!A196","v":"St. Pats advice"},{"$f":"[1]Sheet1!B196","v":"Ascertainment"},{"$f":"[1]Sheet1!D196","v":"This is an ascertainment about advice for the celebration of St. Pat's."}]
[{"$f":"[1]Sheet1!A197","v":"Staph Infections"},{"$f":"[1]Sheet1!B197","v":"Ascertainment"},{"$f":"[1]Sheet1!D197","v":"This is an ascertainment about staph infections."}]
[{"$f":"[1]Sheet1!A198","v":"Stressless Room"},{"$f":"[1]Sheet1!B198","v":"Ascertainment"},{"$f":"[1]Sheet1!D198","v":"This is an ascertainment about the Stressless Room at Missouri S&T."}]
[{"$f":"[1]Sheet1!A199","v":"Student Success Center"},{"$f":"[1]Sheet1!B199","v":"Ascertainment"},{"$f":"[1]Sheet1!D199","v":"This is an ascertainment about the Student Success Center."}]
[{"$f":"[1]Sheet1!A200","v":"Trail Usage"},{"$f":"[1]Sheet1!B200","v":"Ascertainment"},{"$f":"[1]Sheet1!D200","v":"This is an ascertainment about trail etiquette when hiking."}]
[{"$f":"[1]Sheet1!A201","v":"Turn Down Your Ding Dang Speakers"},{"$f":"[1]Sheet1!B201","v":"Ascertainment"},{"$f":"[1]Sheet1!D201","v":"This is an ascertainment about turning down your music in your dorm room."}]
[{"$f":"[1]Sheet1!A202","v":"University Police"},{"$f":"[1]Sheet1!B202","v":"Ascertainment"},{"$f":"[1]Sheet1!D202","v":"This is an ascertainment about University Police."}]
[{"$f":"[1]Sheet1!A203","v":"Video Game Addiction"},{"$f":"[1]Sheet1!B203","v":"Ascertainment"},{"$f":"[1]Sheet1!D203","v":"This is an ascertainment about video game addictions to procrastinate from schoolwork."}]
[{"$f":"[1]Sheet1!A204","v":"Vote With Elton John"},{"$f":"[1]Sheet1!B204","v":"Ascertainment"},{"$f":"[1]Sheet1!D204","v":"This is an ascertainment about registering to vote like Elton John."}]
[{"$f":"[1]Sheet1!A205","v":"writing center"},{"$f":"[1]Sheet1!B205","v":"Ascertainment"},{"$f":"[1]Sheet1!D205","v":"This is an ascertainment about the Missouri S&T writing center."}]
[{"$f":"[1]Sheet1!A206","v":"20 20 20 Vision Rule"},{"$f":"[1]Sheet1!B206","v":"PSA"},{"$f":"[1]Sheet1!D206","v":"This is a public service announcement about preventing eye strain."}]
[{"$f":"[1]Sheet1!A207","v":"Absentee Voting"},{"$f":"[1]Sheet1!B207","v":"PSA"},{"$f":"[1]Sheet1!D207","v":"This is a public service announcement about absentee voting."}]
[{"$f":"[1]Sheet1!A208","v":"ALIENS"},{"$f":"[1]Sheet1!B208","v":"PSA"},{"$f":"[1]Sheet1!D208","v":"This is a public service announcement about aliens."}]
[{"$f":"[1]Sheet1!A209","v":"Always With Me Sub Disorder"},{"$f":"[1]Sheet1!B209","v":"PSA"},{"$f":"[1]Sheet1!D209","v":"This is a public service announcement about recovery from mental illness and substance abuse."}]
[{"$f":"[1]Sheet1!A210","v":"Autocorrect"},{"$f":"[1]Sheet1!B210","v":"PSA"},{"$f":"[1]Sheet1!D210","v":"This is a public service announcement about using autocorrect."}]
[{"$f":"[1]Sheet1!A211","v":"Autoerotic Asphyxiation"},{"$f":"[1]Sheet1!B211","v":"PSA"},{"$f":"[1]Sheet1!D211","v":"This is a public service announcement about the danger of autoerotic asphyxiation."}]
[{"$f":"[1]Sheet1!A212","v":"Bacterial Vaginosis"},{"$f":"[1]Sheet1!B212","v":"PSA"},{"$f":"[1]Sheet1!D212","v":"This is a public service announcement about the hazards and statistics of bacterial vaginosis."}]
[{"$f":"[1]Sheet1!A213","v":"Be Child Care Aware"},{"$f":"[1]Sheet1!B213","v":"PSA"},{"$f":"[1]Sheet1!D213","v":"This is a public service announcement about child care awareness."}]
[{"$f":"[1]Sheet1!A214","v":"Bear Selfie"},{"$f":"[1]Sheet1!B214","v":"PSA"},{"$f":"[1]Sheet1!D214","v":"This is a public service announcement about avoiding selfies with bears."}]
[{"$f":"[1]Sheet1!A215","v":"Bee Swarm"},{"$f":"[1]Sheet1!B215","v":"PSA"},{"$f":"[1]Sheet1!D215","v":"This is a public service announcement about the hazards and statistics of bee swarms."}]
[{"$f":"[1]Sheet1!A216","v":"Beezin"},{"$f":"[1]Sheet1!B216","v":"PSA"},{"$f":"[1]Sheet1!D216","v":"This is a public service announcement about lip balm."}]
[{"$f":"[1]Sheet1!A217","v":"Best Buddies"},{"$f":"[1]Sheet1!B217","v":"PSA"},{"$f":"[1]Sheet1!D217","v":"This is a public service announcement about the Best Buddies program."}]
[{"$f":"[1]Sheet1!A218","v":"Bird Collisions"},{"$f":"[1]Sheet1!B218","v":"PSA"},{"$f":"[1]Sheet1!D218","v":"This is a public service announcement about bird collisions."}]
[{"$f":"[1]Sheet1!A219","v":"Black Ice"},{"$f":"[1]Sheet1!B219","v":"PSA"},{"$f":"[1]Sheet1!D219","v":"This is a public service announcement about black ice."}]
[{"$f":"[1]Sheet1!A220","v":"Black Rhinos"},{"$f":"[1]Sheet1!B220","v":"PSA"},{"$f":"[1]Sheet1!D220","v":"This is a public service announcement about the endangered black rhinoceros."}]
[{"$f":"[1]Sheet1!A221","v":"boardz n bikes n thangs"},{"$f":"[1]Sheet1!B221","v":"PSA"},{"$f":"[1]Sheet1!D221","v":"This is a public service announcement about bikes and skateboards."}]
[{"$f":"[1]Sheet1!A222","v":"Body Dysmorphia"},{"$f":"[1]Sheet1!B222","v":"PSA"},{"$f":"[1]Sheet1!D222","v":"This is a public service announcement about body dysmorphia."}]
[{"$f":"[1]Sheet1!A223","v":"Body Odor"},{"$f":"[1]Sheet1!B223","v":"PSA"},{"$f":"[1]Sheet1!D223","v":"This is a public service announcement about wearing deodorant."}]
[{"$f":"[1]Sheet1!A224","v":"Breastfeeding"},{"$f":"[1]Sheet1!B224","v":"PSA"},{"$f":"[1]Sheet1!D224","v":"This is a public service announcement about breastfeeding."}]
[{"$f":"[1]Sheet1!A225","v":"Brush Your Teeth"},{"$f":"[1]Sheet1!B225","v":"PSA"},{"$f":"[1]Sheet1!D225","v":"This is a public service announcement about brushing your teeth."}]
[{"$f":"[1]Sheet1!A226","v":"Buddy system"},{"$f":"[1]Sheet1!B226","v":"PSA"},{"$f":"[1]Sheet1!D226","v":"This is a public service announcement about having a buddy system."}]
[{"$f":"[1]Sheet1!A227","v":"Butt Chug"},{"$f":"[1]Sheet1!B227","v":"PSA"},{"$f":"[1]Sheet1!D227","v":"This is a public service announcement about the dangers of butt chugging."}]
[{"$f":"[1]Sheet1!A228","v":"Caffeine Addiction and You"},{"$f":"[1]Sheet1!B228","v":"PSA"},{"$f":"[1]Sheet1!D228","v":"This is a public service announcement about caffeine addiction."}]
[{"$f":"[1]Sheet1!A229","v":"Call Your Mom"},{"$f":"[1]Sheet1!B229","v":"PSA"},{"$f":"[1]Sheet1!D229","v":"This is a public service announcement about calling your mom more often."}]
[{"$f":"[1]Sheet1!A230","v":"Campground Etiquette"},{"$f":"[1]Sheet1!B230","v":"PSA"},{"$f":"[1]Sheet1!D230","v":"This is a public service announcement about having proper campground etiquette."}]
[{"$f":"[1]Sheet1!A231","v":"CAT HERPES"},{"$f":"[1]Sheet1!B231","v":"PSA"},{"$f":"[1]Sheet1!D231","v":"This is a public service announcement about cat herpes."}]
[{"$f":"[1]Sheet1!A232","v":"Celiac"},{"$f":"[1]Sheet1!B232","v":"PSA"},{"$f":"[1]Sheet1!D232","v":"This is a public service announcement about Celiac disease."}]
[{"$f":"[1]Sheet1!A233","v":"Cellphones at Concerts"},{"$f":"[1]Sheet1!B233","v":"PSA"},{"$f":"[1]Sheet1!D233","v":"This is a public service announcement about turning your cellphones off at concerts on campus."}]
[{"$f":"[1]Sheet1!A234","v":"Check Your Boots"},{"$f":"[1]Sheet1!B234","v":"PSA"},{"$f":"[1]Sheet1!D234","v":"This is a public service announcement about checking your boots inbetween hikes."}]
[{"$f":"[1]Sheet1!A235","v":"chili"},{"$f":"[1]Sheet1!B235","v":"PSA"},{"$f":"[1]Sheet1!D235","v":"This is a public service announcement about chili."}]
[{"$f":"[1]Sheet1!A236","v":"circumcision"},{"$f":"[1]Sheet1!B236","v":"PSA"},{"$f":"[1]Sheet1!D236","v":"This is a public service announcement about circumcision."}]
[{"$f":"[1]Sheet1!A237","v":"Clean Towels"},{"$f":"[1]Sheet1!B237","v":"PSA"},{"$f":"[1]Sheet1!D237","v":"This is a public service announcement about information of towels/cleaning towels after use."}]
[{"$f":"[1]Sheet1!A238","v":"College Campus Squirrels"},{"$f":"[1]Sheet1!B238","v":"PSA"},{"$f":"[1]Sheet1!D238","v":"This is a public service announcement about the friendliness of college campus squirrels and why you should avoid them."}]
[{"$f":"[1]Sheet1!A239","v":"Condoms"},{"$f":"[1]Sheet1!B239","v":"PSA"},{"$f":"[1]Sheet1!D239","v":"This is a public service announcement about condoms."}]
[{"$f":"[1]Sheet1!A240","v":"Crossing streets safely"},{"$f":"[1]Sheet1!B240","v":"PSA"},{"$f":"[1]Sheet1!D240","v":"This is a public service announcement about crossing streets safely."}]
[{"$f":"[1]Sheet1!A241","v":"Data Due Diligence"},{"$f":"[1]Sheet1!B241","v":"PSA"},{"$f":"[1]Sheet1!D241","v":"This is a public service announcement about why people lose their data and how to recover it."}]
[{"$f":"[1]Sheet1!A242","v":"Doggie Depression"},{"$f":"[1]Sheet1!B242","v":"PSA"},{"$f":"[1]Sheet1!D242","v":"This is a public service announcement about depression in dogs."}]
[{"$f":"[1]Sheet1!A243","v":"Donate Your Eyes"},{"$f":"[1]Sheet1!B243","v":"PSA"},{"$f":"[1]Sheet1!D243","v":"This is a public service announcement about donating your eyes."}]
[{"$f":"[1]Sheet1!A244","v":"Dont be a D"},{"$f":"[1]Sheet1!B244","v":"PSA"},{"$f":"[1]Sheet1!D244","v":"This is a public service announcement about being a better overall person."}]
[{"$f":"[1]Sheet1!A245","v":"Dont Die From The cold"},{"$f":"[1]Sheet1!B245","v":"PSA"},{"$f":"[1]Sheet1!D245","v":"This is a public service announcement about putting on layers when it's cold outside."}]
[{"$f":"[1]Sheet1!A246","v":"Dont Reuse Condoms"},{"$f":"[1]Sheet1!B246","v":"PSA"},{"$f":"[1]Sheet1!D246","v":"This is a public service announcement about the dangers of reusing condoms."}]
[{"$f":"[1]Sheet1!A247","v":"Dont Smother Your Children"},{"$f":"[1]Sheet1!B247","v":"PSA"},{"$f":"[1]Sheet1!D247","v":"This is a public service announcement about avoiding helicopter parenting."}]
[{"$f":"[1]Sheet1!A248","v":"Dont Steal Wireless"},{"$f":"[1]Sheet1!B248","v":"PSA"},{"$f":"[1]Sheet1!D248","v":"This is a public service announcement about avoiding stealing wifi information."}]
[{"$f":"[1]Sheet1!A249","v":"Dont Swear In Front Of The Children"},{"$f":"[1]Sheet1!B249","v":"PSA"},{"$f":"[1]Sheet1!D249","v":"This is a public service announcement about not swearing in front of children."}]
[{"$f":"[1]Sheet1!A250","v":"Dont Text and Drive"},{"$f":"[1]Sheet1!B250","v":"PSA"},{"$f":"[1]Sheet1!D250","v":"This is a public service announcement about not texting and driving."}]
[{"$f":"[1]Sheet1!A251","v":"Drink Milk"},{"$f":"[1]Sheet1!B251","v":"PSA"},{"$f":"[1]Sheet1!D251","v":"This is a public service announcement about drinking milk."}]
[{"$f":"[1]Sheet1!A252","v":"Drowsy Driving"},{"$f":"[1]Sheet1!B252","v":"PSA"},{"$f":"[1]Sheet1!D252","v":"This is a public service announcement about the risks of drowsy drivng (fatigue)."}]
[{"$f":"[1]Sheet1!A253","v":"Drug Free"},{"$f":"[1]Sheet1!B253","v":"PSA"},{"$f":"[1]Sheet1!D253","v":"This is a public service announcement about being drug free, espically not starting early in your life."}]
[{"$f":"[1]Sheet1!A254","v":"dumpster diving"},{"$f":"[1]Sheet1!B254","v":"PSA"},{"$f":"[1]Sheet1!D254","v":"This is a public service announcement about the information of dumpster diving."}]
[{"$f":"[1]Sheet1!A255","v":"Duster"},{"$f":"[1]Sheet1!B255","v":"PSA"},{"$f":"[1]Sheet1!D255","v":"This is a public service announcement about dusting."}]
[{"$f":"[1]Sheet1!A256","v":"Electrocution"},{"$f":"[1]Sheet1!B256","v":"PSA"},{"$f":"[1]Sheet1!D256","v":"This is a public service announcement about electrical safety."}]
[{"$f":"[1]Sheet1!A257","v":"Epistemology"},{"$f":"[1]Sheet1!B257","v":"PSA"},{"$f":"[1]Sheet1!D257","v":"This is a public service announcement about epistemology."}]
[{"$f":"[1]Sheet1!A258","v":"Ethics"},{"$f":"[1]Sheet1!B258","v":"PSA"},{"$f":"[1]Sheet1!D258","v":"This is a public service announcement about ethics."}]
[{"$f":"[1]Sheet1!A259","v":"Evolution vs. Creationism"},{"$f":"[1]Sheet1!B259","v":"PSA"},{"$f":"[1]Sheet1!D259","v":"This is a public service announcement about evolution versus creationism."}]
[{"$f":"[1]Sheet1!A260","v":"Fake News"},{"$f":"[1]Sheet1!B260","v":"PSA"},{"$f":"[1]Sheet1!D260","v":"This is a public service announcement about how the internet may contain fake news."}]
[{"$f":"[1]Sheet1!A261","v":"Falling Coconuts"},{"$f":"[1]Sheet1!B261","v":"PSA"},{"$f":"[1]Sheet1!D261","v":"This is a public service announcement about the risk of falling coconuts on the beach."}]
[{"$f":"[1]Sheet1!A262","v":"Family Mental Illness"},{"$f":"[1]Sheet1!B262","v":"PSA"},{"$f":"[1]Sheet1!D262","v":"This is a public service announcement about the information of family mental illness."}]
[{"$f":"[1]Sheet1!A263","v":"Flat Earth"},{"$f":"[1]Sheet1!B263","v":"PSA"},{"$f":"[1]Sheet1!D263","v":"This is a public service announcement about scientific facts that the earth is round, and not flat."}]
[{"$f":"[1]Sheet1!A264","v":"Floaters"},{"$f":"[1]Sheet1!B264","v":"PSA"},{"$f":"[1]Sheet1!D264","v":"This is a public service announcement about floaters in eyes."}]
[{"$f":"[1]Sheet1!A265","v":"Floss Yo Teef"},{"$f":"[1]Sheet1!B265","v":"PSA"},{"$f":"[1]Sheet1!D265","v":"This is a public service announcement about flossing."}]
[{"$f":"[1]Sheet1!A266","v":"Folic Acid Information"},{"$f":"[1]Sheet1!B266","v":"PSA"},{"$f":"[1]Sheet1!D266","v":"This is a public service announcement about the b complex vitamin, folic."}]
[{"$f":"[1]Sheet1!A267","v":"Food Safety-Is It Done Yet"},{"$f":"[1]Sheet1!B267","v":"PSA"},{"$f":"[1]Sheet1!D267","v":"This is a public service announcement about food safety."}]
[{"$f":"[1]Sheet1!A268","v":"Furnace Filters"},{"$f":"[1]Sheet1!B268","v":"PSA"},{"$f":"[1]Sheet1!D268","v":"This is a public service announcement about the reminder to change your furance filters."}]
[{"$f":"[1]Sheet1!A269","v":"GO TO CLASS"},{"$f":"[1]Sheet1!B269","v":"PSA"},{"$f":"[1]Sheet1!D269","v":"This is a public service announcement about going to class."}]
[{"$f":"[1]Sheet1!A270","v":"Graffiti"},{"$f":"[1]Sheet1!B270","v":"PSA"},{"$f":"[1]Sheet1!D270","v":"This is a public service announcement about graffiti."}]
[{"$f":"[1]Sheet1!A271","v":"Gun safety"},{"$f":"[1]Sheet1!B271","v":"PSA"},{"$f":"[1]Sheet1!D271","v":"This is a public service announcement about gun safety."}]
[{"$f":"[1]Sheet1!A272","v":"Handicapped Parking"},{"$f":"[1]Sheet1!B272","v":"PSA"},{"$f":"[1]Sheet1!D272","v":"This is a public service announcement about handicapped parking."}]
[{"$f":"[1]Sheet1!A273","v":"Health and Fast Food"},{"$f":"[1]Sheet1!B273","v":"PSA"},{"$f":"[1]Sheet1!D273","v":"This is a public service announcement about the health risks associated with fast food."}]
[{"$f":"[1]Sheet1!A274","v":"Healthy Eating"},{"$f":"[1]Sheet1!B274","v":"PSA"},{"$f":"[1]Sheet1!D274","v":"This is a public service announcement about eating healthy."}]
[{"$f":"[1]Sheet1!A275","v":"Hearing Loss"},{"$f":"[1]Sheet1!B275","v":"PSA"},{"$f":"[1]Sheet1!D275","v":"This is a public service announcement about hearing loss."}]
[{"$f":"[1]Sheet1!A276","v":"Heart Disease"},{"$f":"[1]Sheet1!B276","v":"PSA"},{"$f":"[1]Sheet1!D276","v":"This is a public service announcement about heart disease."}]
[{"$f":"[1]Sheet1!A277","v":"Highway Accidents"},{"$f":"[1]Sheet1!B277","v":"PSA"},{"$f":"[1]Sheet1!D277","v":"This is a public service announcement about the information on highway statistics and how to prevent them."}]
[{"$f":"[1]Sheet1!A278","v":"Home Mental Illness"},{"$f":"[1]Sheet1!B278","v":"PSA"},{"$f":"[1]Sheet1!D278","v":"This is a public service announcement about sharing stories to cope with mental illness."}]
[{"$f":"[1]Sheet1!A279","v":"Homophones"},{"$f":"[1]Sheet1!B279","v":"PSA"},{"$f":"[1]Sheet1!D279","v":"This is a public service announcement about the definitions and examples of homophones."}]
[{"$f":"[1]Sheet1!A280","v":"Hotel Fire Safety"},{"$f":"[1]Sheet1!B280","v":"PSA"},{"$f":"[1]Sheet1!D280","v":"This is a public service announcement about hotel fire safety."}]
[{"$f":"[1]Sheet1!A281","v":"IBS"},{"$f":"[1]Sheet1!B281","v":"PSA"},{"$f":"[1]Sheet1!D281","v":"This is a public service announcement about information of irritable bowel syndrome"}]
[{"$f":"[1]Sheet1!A282","v":"In the Trash"},{"$f":"[1]Sheet1!B282","v":"PSA"},{"$f":"[1]Sheet1!D282","v":"This is a public service announcement about garbage."}]
[{"$f":"[1]Sheet1!A283","v":"Incredible egg"},{"$f":"[1]Sheet1!B283","v":"PSA"},{"$f":"[1]Sheet1!D283","v":"This is a public service announcement about eggs."}]
[{"$f":"[1]Sheet1!A284","v":"Inhalants I"},{"$f":"[1]Sheet1!B284","v":"PSA"},{"$f":"[1]Sheet1!D284","v":"This is a public service announcement about the dangers of inhalements."}]
[{"$f":"[1]Sheet1!A285","v":"Inhalents II"},{"$f":"[1]Sheet1!B285","v":"PSA"},{"$f":"[1]Sheet1!D285","v":"This is a public service announcement about the dangers of inhalements."}]
[{"$f":"[1]Sheet1!A286","v":"Inline Skating Safety"},{"$f":"[1]Sheet1!B286","v":"PSA"},{"$f":"[1]Sheet1!D286","v":"This is a public service announcement about the safety of inline skating."}]
[{"$f":"[1]Sheet1!A287","v":"Internet Predators"},{"$f":"[1]Sheet1!B287","v":"PSA"},{"$f":"[1]Sheet1!D287","v":"This is a public service announcement about the dangers of internet preadators."}]
[{"$f":"[1]Sheet1!A288","v":"Islamic Beliefs"},{"$f":"[1]Sheet1!B288","v":"PSA"},{"$f":"[1]Sheet1!D288","v":"This is a public service announcement about Islam."}]
[{"$f":"[1]Sheet1!A289","v":"Jay Walking"},{"$f":"[1]Sheet1!B289","v":"PSA"},{"$f":"[1]Sheet1!D289","v":"This is a public service announcemen about jay walking."}]
[{"$f":"[1]Sheet1!A290","v":"Jenkem "},{"$f":"[1]Sheet1!B290","v":"PSA"},{"$f":"[1]Sheet1!D290","v":"This is a public service announcement about the dangerous drug jenkem."}]
[{"$f":"[1]Sheet1!A291","v":"Lead Poisoning"},{"$f":"[1]Sheet1!B291","v":"PSA"},{"$f":"[1]Sheet1!D291","v":"This is a public service announcement about lead poisoning."}]
[{"$f":"[1]Sheet1!A292","v":"Libido"},{"$f":"[1]Sheet1!B292","v":"PSA"},{"$f":"[1]Sheet1!D292","v":"This is a public service announcement about libido."}]
[{"$f":"[1]Sheet1!A293","v":"Lightning Facts"},{"$f":"[1]Sheet1!B293","v":"PSA"},{"$f":"[1]Sheet1!D293","v":"This is a public service announcement about lightning."}]
[{"$f":"[1]Sheet1!A294","v":"Local Awareness"},{"$f":"[1]Sheet1!B294","v":"PSA"},{"$f":"[1]Sheet1!D294","v":"This is a public service announcement about being aware of your local surroundings."}]
[{"$f":"[1]Sheet1!A295","v":"Local Music"},{"$f":"[1]Sheet1!B295","v":"PSA"},{"$f":"[1]Sheet1!D295","v":"This is a public service announcement about local music."}]
[{"$f":"[1]Sheet1!A296","v":"lock doors"},{"$f":"[1]Sheet1!B296","v":"PSA"},{"$f":"[1]Sheet1!D296","v":"This is a public service announcement about locking your doors."}]
[{"$f":"[1]Sheet1!A297","v":"Lock Your Doors"},{"$f":"[1]Sheet1!B297","v":"PSA"},{"$f":"[1]Sheet1!D297","v":"This is a public service announcement about locking your doors."}]
[{"$f":"[1]Sheet1!A298","v":"London Exchange"},{"$f":"[1]Sheet1!B298","v":"PSA"},{"$f":"[1]Sheet1!D298","v":"This is a public service announcement about the London Exchange."}]
[{"$f":"[1]Sheet1!A299","v":"Loud Music"},{"$f":"[1]Sheet1!B299","v":"PSA"},{"$f":"[1]Sheet1!D299","v":"This is a public service announcement about the dangers of loud music."}]
[{"$f":"[1]Sheet1!A300","v":"Maggots"},{"$f":"[1]Sheet1!B300","v":"PSA"},{"$f":"[1]Sheet1!D300","v":"This is a public service announcement about maggots."}]
[{"$f":"[1]Sheet1!A301","v":"Make Beer"},{"$f":"[1]Sheet1!B301","v":"PSA"},{"$f":"[1]Sheet1!D301","v":"This is a public service announcement about beer."}]
[{"$f":"[1]Sheet1!A302","v":"Marijuana I"},{"$f":"[1]Sheet1!B302","v":"PSA"},{"$f":"[1]Sheet1!D302","v":"This is a public service announcement about the dangers of marijuana."}]
[{"$f":"[1]Sheet1!A303","v":"Marijuana II"},{"$f":"[1]Sheet1!B303","v":"PSA"},{"$f":"[1]Sheet1!D303","v":"This is a public service announcement about the dangers of marijuana."}]
[{"$f":"[1]Sheet1!A304","v":"Marijuana Reform"},{"$f":"[1]Sheet1!B304","v":"PSA"},{"$f":"[1]Sheet1!D304","v":"This is a public service announcement about marijuana reform."}]
[{"$f":"[1]Sheet1!A305","v":"Memory Loss"},{"$f":"[1]Sheet1!B305","v":"PSA"},{"$f":"[1]Sheet1!D305","v":"This is a public service announcement about the facts about memory loss."}]
[{"$f":"[1]Sheet1!A306","v":"Migraines"},{"$f":"[1]Sheet1!B306","v":"PSA"},{"$f":"[1]Sheet1!D306","v":"This is a public service announcement about migraines."}]
[{"$f":"[1]Sheet1!A307","v":"Mono"},{"$f":"[1]Sheet1!B307","v":"PSA"},{"$f":"[1]Sheet1!D307","v":"This is a public service announcement about the disease mononucleosis."}]
[{"$f":"[1]Sheet1!A308","v":"Monobola"},{"$f":"[1]Sheet1!B308","v":"PSA"},{"$f":"[1]Sheet1!D308","v":"This is a public service announcement about information on monobola."}]
[{"$f":"[1]Sheet1!A309","v":"Mononucleosis"},{"$f":"[1]Sheet1!B309","v":"PSA"},{"$f":"[1]Sheet1!D309","v":"This is a public service announcement about the disease mononucleosis."}]
[{"$f":"[1]Sheet1!A310","v":"Moshing"},{"$f":"[1]Sheet1!B310","v":"PSA"},{"$f":"[1]Sheet1!D310","v":"This is a public service announcement about the etiquette of moshing at concerts."}]
[{"$f":"[1]Sheet1!A311","v":"Moshpit Safety"},{"$f":"[1]Sheet1!B311","v":"PSA"},{"$f":"[1]Sheet1!D311","v":"This is a public service announcement about the safety of mosh pitting."}]
[{"$f":"[1]Sheet1!A312","v":"Mosquitoes"},{"$f":"[1]Sheet1!B312","v":"PSA"},{"$f":"[1]Sheet1!D312","v":"This is a public service announcement about mosquitoes."}]
[{"$f":"[1]Sheet1!A313","v":"Motorcycle Safety I"},{"$f":"[1]Sheet1!B313","v":"PSA"},{"$f":"[1]Sheet1!D313","v":"This is a public service announcement about motorcycle safety."}]
[{"$f":"[1]Sheet1!A314","v":"Motorcycle Safety II"},{"$f":"[1]Sheet1!B314","v":"PSA"},{"$f":"[1]Sheet1!D314","v":"This is a public service announcement about motorcycle safety."}]
[{"$f":"[1]Sheet1!A315","v":"Motorcycles"},{"$f":"[1]Sheet1!B315","v":"PSA"},{"$f":"[1]Sheet1!D315","v":"This is a public service announcement about information on motorcycles."}]
[{"$f":"[1]Sheet1!A316","v":"Music Festivals"},{"$f":"[1]Sheet1!B316","v":"PSA"},{"$f":"[1]Sheet1!D316","v":"This is a public service announcement about music festivals."}]
[{"$f":"[1]Sheet1!A317","v":"My Story Is Yours"},{"$f":"[1]Sheet1!B317","v":"PSA"},{"$f":"[1]Sheet1!D317","v":"This is a public service announcement about a program recovering about mental illness."}]
[{"$f":"[1]Sheet1!A318","v":"Net Neutrality"},{"$f":"[1]Sheet1!B318","v":"PSA"},{"$f":"[1]Sheet1!D318","v":"This is a public service announcement about information on net neutrality."}]
[{"$f":"[1]Sheet1!A319","v":"No Metal In The Microwave"},{"$f":"[1]Sheet1!B319","v":"PSA"},{"$f":"[1]Sheet1!D319","v":"This is a public service announcement about not having metal in the microwave."}]
[{"$f":"[1]Sheet1!A320","v":"Nuclear Attack"},{"$f":"[1]Sheet1!B320","v":"PSA"},{"$f":"[1]Sheet1!D320","v":"This is a public service announcement about what to do in case of a nuclear attack."}]
[{"$f":"[1]Sheet1!A321","v":"Nuclear Power"},{"$f":"[1]Sheet1!B321","v":"PSA"},{"$f":"[1]Sheet1!D321","v":"This is a public service announcement about information on nuclear power."}]
[{"$f":"[1]Sheet1!A322","v":"Obsession Vs. Affection"},{"$f":"[1]Sheet1!B322","v":"PSA"},{"$f":"[1]Sheet1!D322","v":"This is a public service announcement about healthy levels of affection."}]
[{"$f":"[1]Sheet1!A323","v":"Ocelots"},{"$f":"[1]Sheet1!B323","v":"PSA"},{"$f":"[1]Sheet1!D323","v":"This is a public service announcement about the endangered ocelot."}]
[{"$f":"[1]Sheet1!A324","v":"Old Guys On Trash"},{"$f":"[1]Sheet1!B324","v":"PSA"},{"$f":"[1]Sheet1!D324","v":"This is a public service announcement about garbage."}]
[{"$f":"[1]Sheet1!A325","v":"Organ Donation"},{"$f":"[1]Sheet1!B325","v":"PSA"},{"$f":"[1]Sheet1!D325","v":"This is a public service announcement about organ donation."}]
[{"$f":"[1]Sheet1!A326","v":"P2P Privacy"},{"$f":"[1]Sheet1!B326","v":"PSA"},{"$f":"[1]Sheet1!D326","v":"This is a public service announcement about P2P network privacy."}]
[{"$f":"[1]Sheet1!A327","v":"Painkiller Abuse"},{"$f":"[1]Sheet1!B327","v":"PSA"},{"$f":"[1]Sheet1!D327","v":"This is a public service announcement about the dangers of painkiller abuse."}]
[{"$f":"[1]Sheet1!A328","v":"Paintball Safety"},{"$f":"[1]Sheet1!B328","v":"PSA"},{"$f":"[1]Sheet1!D328","v":"This is a public service announcement about paintball safety."}]
[{"$f":"[1]Sheet1!A329","v":"Parking"},{"$f":"[1]Sheet1!B329","v":"PSA"},{"$f":"[1]Sheet1!D329","v":"This is a public service announcement about the do's and don'ts of parking."}]
[{"$f":"[1]Sheet1!A330","v":"Parking etiquette"},{"$f":"[1]Sheet1!B330","v":"PSA"},{"$f":"[1]Sheet1!D330","v":"This is a public service announcement about the etiquette of parking."}]
[{"$f":"[1]Sheet1!A331","v":"Passive Aggressiveness"},{"$f":"[1]Sheet1!B331","v":"PSA"},{"$f":"[1]Sheet1!D331","v":"This is a public service announcement about information on passive agressiveness."}]
[{"$f":"[1]Sheet1!A332","v":"Peanutbutter and Jelly"},{"$f":"[1]Sheet1!B332","v":"PSA"},{"$f":"[1]Sheet1!D332","v":"This is a public service announcement about PB&J."}]
[{"$f":"[1]Sheet1!A333","v":"Pedestrian Crossing"},{"$f":"[1]Sheet1!B333","v":"PSA"},{"$f":"[1]Sheet1!D333","v":"This is a public service announcement about pedestrian crossings."}]
[{"$f":"[1]Sheet1!A334","v":"Pedigree vs. The Pound"},{"$f":"[1]Sheet1!B334","v":"PSA"},{"$f":"[1]Sheet1!D334","v":"This is a public service announcement about adopting dogs from the local pound."}]
[{"$f":"[1]Sheet1!A335","v":"Pet Diseases"},{"$f":"[1]Sheet1!B335","v":"PSA"},{"$f":"[1]Sheet1!D335","v":"This is a public service announcement about facts pet disease facts and preventions."}]
[{"$f":"[1]Sheet1!A336","v":"Pets In Cars"},{"$f":"[1]Sheet1!B336","v":"PSA"},{"$f":"[1]Sheet1!D336","v":"This is a public service announcement about tips when you see a pet in a car."}]
[{"$f":"[1]Sheet1!A337","v":"Phobias"},{"$f":"[1]Sheet1!B337","v":"PSA"},{"$f":"[1]Sheet1!D337","v":"This is a public service announcement about information on different types of phobias."}]
[{"$f":"[1]Sheet1!A338","v":"Piercing Safety"},{"$f":"[1]Sheet1!B338","v":"PSA"},{"$f":"[1]Sheet1!D338","v":"This is a public service announcement about safety when getting piercings."}]
[{"$f":"[1]Sheet1!A339","v":"Pink Elephant"},{"$f":"[1]Sheet1!B339","v":"PSA"},{"$f":"[1]Sheet1!D339","v":"This is a public service announcement about the information on sexual assaults."}]
[{"$f":"[1]Sheet1!A340","v":"Plagiarism"},{"$f":"[1]Sheet1!B340","v":"PSA"},{"$f":"[1]Sheet1!D340","v":"This is a public service announcement about avoiding plagiarism."}]
[{"$f":"[1]Sheet1!A341","v":"Poly-Drug Abuse"},{"$f":"[1]Sheet1!B341","v":"PSA"},{"$f":"[1]Sheet1!D341","v":"This is a public service announcement about avoiding drug abuse."}]
[{"$f":"[1]Sheet1!A342","v":"Power in Space"},{"$f":"[1]Sheet1!B342","v":"PSA"},{"$f":"[1]Sheet1!D342","v":"This is a public service announcement about power in space."}]
[{"$f":"[1]Sheet1!A343","v":"Prairie Dogs"},{"$f":"[1]Sheet1!B343","v":"PSA"},{"$f":"[1]Sheet1!D343","v":"This is a public service announcement about prairie dogs."}]
[{"$f":"[1]Sheet1!A344","v":"Proper Suncare"},{"$f":"[1]Sheet1!B344","v":"PSA"},{"$f":"[1]Sheet1!D344","v":"This is a public service announcement about keeping your skin safe in the sun."}]
[{"$f":"[1]Sheet1!A345","v":"Prostate Cancer"},{"$f":"[1]Sheet1!B345","v":"PSA"},{"$f":"[1]Sheet1!D345","v":"This is a public service announcement about information on prostate cancer."}]
[{"$f":"[1]Sheet1!A346","v":"Prostate Health"},{"$f":"[1]Sheet1!B346","v":"PSA"},{"$f":"[1]Sheet1!D346","v":"This is a public service announcement about information on prostate health."}]
[{"$f":"[1]Sheet1!A347","v":"Public Urination"},{"$f":"[1]Sheet1!B347","v":"PSA"},{"$f":"[1]Sheet1!D347","v":"This is a public service announcement about avoiding public urination."}]
[{"$f":"[1]Sheet1!A348","v":"RADD (Recording artists Against Drunk Driving)"},{"$f":"[1]Sheet1!B348","v":"PSA"},{"$f":"[1]Sheet1!D348","v":"This is a public service announcement about the dangers of drunk driving."}]
[{"$f":"[1]Sheet1!A349","v":"Radiation Facts"},{"$f":"[1]Sheet1!B349","v":"PSA"},{"$f":"[1]Sheet1!D349","v":"This is a public service announcement about information on radiation."}]
[{"$f":"[1]Sheet1!A350","v":"RecoveryPosition"},{"$f":"[1]Sheet1!B350","v":"PSA"},{"$f":"[1]Sheet1!D350","v":"This is a public service announcement about performing CPR."}]
[{"$f":"[1]Sheet1!A351","v":"Refridgerated Foods"},{"$f":"[1]Sheet1!B351","v":"PSA"},{"$f":"[1]Sheet1!D351","v":"This is a public service announcement about refridgerating foods."}]
[{"$f":"[1]Sheet1!A352","v":"Renters Rights"},{"$f":"[1]Sheet1!B352","v":"PSA"},{"$f":"[1]Sheet1!D352","v":"This is a public service announcement about renter's rights."}]
[{"$f":"[1]Sheet1!A353","v":"Reporting Crimes"},{"$f":"[1]Sheet1!B353","v":"PSA"},{"$f":"[1]Sheet1!D353","v":"This is a public service announcement about how to report a crime."}]
[{"$f":"[1]Sheet1!A354","v":"Road Rage I"},{"$f":"[1]Sheet1!B354","v":"PSA"},{"$f":"[1]Sheet1!D354","v":"This is a public service announcement about road rage."}]
[{"$f":"[1]Sheet1!A355","v":"Road Rage II"},{"$f":"[1]Sheet1!B355","v":"PSA"},{"$f":"[1]Sheet1!D355","v":"This is a public service announcement about road rage."}]
[{"$f":"[1]Sheet1!A356","v":"Robotripping"},{"$f":"[1]Sheet1!B356","v":"PSA"},{"$f":"[1]Sheet1!D356","v":"This is a public service announcement about the dangers of DXM."}]
[{"$f":"[1]Sheet1!A357","v":"Route 666"},{"$f":"[1]Sheet1!B357","v":"PSA"},{"$f":"[1]Sheet1!D357","v":"This is a public service announcement about Route 666."}]
[{"$f":"[1]Sheet1!A358","v":"Running Red Lights"},{"$f":"[1]Sheet1!B358","v":"PSA"},{"$f":"[1]Sheet1!D358","v":"This is a public service announcement about running red lights."}]
[{"$f":"[1]Sheet1!A359","v":"Rural Roads"},{"$f":"[1]Sheet1!B359","v":"PSA"},{"$f":"[1]Sheet1!D359","v":"This is a public service announcement about driving on rural roads."}]
[{"$f":"[1]Sheet1!A360","v":"Saving Matters"},{"$f":"[1]Sheet1!B360","v":"PSA"},{"$f":"[1]Sheet1!D360","v":"This is a public service announcement about saving money early."}]
[{"$f":"[1]Sheet1!A361","v":"Seat Belts"},{"$f":"[1]Sheet1!B361","v":"PSA"},{"$f":"[1]Sheet1!D361","v":"This is a public service announcement about wearing your seat belt."}]
[{"$f":"[1]Sheet1!A362","v":"Seatbelt Law"},{"$f":"[1]Sheet1!B362","v":"PSA"},{"$f":"[1]Sheet1!D362","v":"This is a public service announcement about seatbelt laws."}]
[{"$f":"[1]Sheet1!A363","v":"Self-Assertiveness"},{"$f":"[1]Sheet1!B363","v":"PSA"},{"$f":"[1]Sheet1!D363","v":"This is a public service announcement about asserting oneself."}]
[{"$f":"[1]Sheet1!A364","v":"Serotonin Syndrome"},{"$f":"[1]Sheet1!B364","v":"PSA"},{"$f":"[1]Sheet1!D364","v":"This is a public service announcement about serotonin."}]
[{"$f":"[1]Sheet1!A365","v":"Sharks"},{"$f":"[1]Sheet1!B365","v":"PSA"},{"$f":"[1]Sheet1!D365","v":"This is a public service announcement about information on sharks."}]
[{"$f":"[1]Sheet1!A366","v":"Shoplifting"},{"$f":"[1]Sheet1!B366","v":"PSA"},{"$f":"[1]Sheet1!D366","v":"This is a public service announcement about shoplifting."}]
[{"$f":"[1]Sheet1!A367","v":"Single Serve Coffee"},{"$f":"[1]Sheet1!B367","v":"PSA"},{"$f":"[1]Sheet1!D367","v":"This is a public service announcement about the negative effects on single serve coffee on the environment."}]
[{"$f":"[1]Sheet1!A368","v":"Sink Hole"},{"$f":"[1]Sheet1!B368","v":"PSA"},{"$f":"[1]Sheet1!D368","v":"This is a public service announcement about sink holes."}]
[{"$f":"[1]Sheet1!A369","v":"Skin Cancer"},{"$f":"[1]Sheet1!B369","v":"PSA"},{"$f":"[1]Sheet1!D369","v":"This is a public service announcment about how to avoid skin cancer."}]
[{"$f":"[1]Sheet1!A370","v":"Skin Cancer and Tanning Salons"},{"$f":"[1]Sheet1!B370","v":"PSA"},{"$f":"[1]Sheet1!D370","v":"This is a public service announcment about the relation between tanning salons and skin cancer."}]
[{"$f":"[1]Sheet1!A371","v":"Sleep"},{"$f":"[1]Sheet1!B371","v":"PSA"},{"$f":"[1]Sheet1!D371","v":"This is a public service announcement about how to the correct amount of sleep."}]
[{"$f":"[1]Sheet1!A372","v":"Snakes"},{"$f":"[1]Sheet1!B372","v":"PSA"},{"$f":"[1]Sheet1!D372","v":"This is a public service announcement about snakes."}]
[{"$f":"[1]Sheet1!A373","v":"Software Piracy"},{"$f":"[1]Sheet1!B373","v":"PSA"},{"$f":"[1]Sheet1!D373","v":"This is a public service announcement about avoiding software piracy."}]
[{"$f":"[1]Sheet1!A374","v":"Spay or Neuter"},{"$f":"[1]Sheet1!B374","v":"PSA"},{"$f":"[1]Sheet1!D374","v":"This is a public service announcement about spaying or neutering pets."}]
[{"$f":"[1]Sheet1!A375","v":"Spinal Meningitis"},{"$f":"[1]Sheet1!B375","v":"PSA"},{"$f":"[1]Sheet1!D375","v":"This is a public service announcement about information on spinal meningitis."}]
[{"$f":"[1]Sheet1!A376","v":"Stealing Food"},{"$f":"[1]Sheet1!B376","v":"PSA"},{"$f":"[1]Sheet1!D376","v":"This is a public service announcement about stealing food from other people."}]
[{"$f":"[1]Sheet1!A377","v":"Stress Relief"},{"$f":"[1]Sheet1!B377","v":"PSA"},{"$f":"[1]Sheet1!D377","v":"This is a public service announcement about things to do to destress."}]
[{"$f":"[1]Sheet1!A378","v":"Sun Cancer Protection"},{"$f":"[1]Sheet1!B378","v":"PSA"},{"$f":"[1]Sheet1!D378","v":"This is a public service announcement about how to protect oneself against UV radiation."}]
[{"$f":"[1]Sheet1!A379","v":"Sunburn Advice"},{"$f":"[1]Sheet1!B379","v":"PSA"},{"$f":"[1]Sheet1!D379","v":"This is a public service announcement about how to treat sunburns."}]
[{"$f":"[1]Sheet1!A380","v":"Supporting local Musicians"},{"$f":"[1]Sheet1!B380","v":"PSA"},{"$f":"[1]Sheet1!D380","v":"This is a public service announcement about supporting local musicians."}]
[{"$f":"[1]Sheet1!A381","v":"Surviving a Traffic Stop"},{"$f":"[1]Sheet1!B381","v":"PSA"},{"$f":"[1]Sheet1!D381","v":"This is a public service announcement about how to get out of a traffic stop unscathed."}]
[{"$f":"[1]Sheet1!A382","v":"SUV Problems"},{"$f":"[1]Sheet1!B382","v":"PSA"},{"$f":"[1]Sheet1!D382","v":"This is a public service announcement about problems relevant to SUVs."}]
[{"$f":"[1]Sheet1!A383","v":"Syphilis"},{"$f":"[1]Sheet1!B383","v":"PSA"},{"$f":"[1]Sheet1!D383","v":"This is a public service announcement about information on syphillis."}]
[{"$f":"[1]Sheet1!A384","v":"Tar Wars"},{"$f":"[1]Sheet1!B384","v":"PSA"},{"$f":"[1]Sheet1!D384","v":"This is a public service announcement about the dangers of smoking."}]
[{"$f":"[1]Sheet1!A385","v":"Tattoo Health"},{"$f":"[1]Sheet1!B385","v":"PSA"},{"$f":"[1]Sheet1!D385","v":"This is a public service announcement about information on getting a tatoo."}]
[{"$f":"[1]Sheet1!A386","v":"Teen Obesity"},{"$f":"[1]Sheet1!B386","v":"PSA"},{"$f":"[1]Sheet1!D386","v":"This is a public service announcement about information on teen obesity rates."}]
[{"$f":"[1]Sheet1!A387","v":"Test Anxiety"},{"$f":"[1]Sheet1!B387","v":"PSA"},{"$f":"[1]Sheet1!D387","v":"This is a public service announcement about relief from test anxiety."}]
[{"$f":"[1]Sheet1!A388","v":"Testicular Cancer"},{"$f":"[1]Sheet1!B388","v":"PSA"},{"$f":"[1]Sheet1!D388","v":"This is a public service announcement about information on testicular cancer."}]
[{"$f":"[1]Sheet1!A389","v":"Tetnus"},{"$f":"[1]Sheet1!B389","v":"PSA"},{"$f":"[1]Sheet1!D389","v":"This is a public service announcement about information on tetanus."}]
[{"$f":"[1]Sheet1!A390","v":"The Dangers of Social Media"},{"$f":"[1]Sheet1!B390","v":"PSA"},{"$f":"[1]Sheet1!D390","v":"This is a public service announcement about the dangers of social media."}]
[{"$f":"[1]Sheet1!A391","v":"Theft Prevention"},{"$f":"[1]Sheet1!B391","v":"PSA"},{"$f":"[1]Sheet1!D391","v":"This is a public service announcement about preventing theft of property."}]
[{"$f":"[1]Sheet1!A392","v":"Tinnitus"},{"$f":"[1]Sheet1!B392","v":"PSA"},{"$f":"[1]Sheet1!D392","v":"This is a public service announcement about information on Tinnitus."}]
[{"$f":"[1]Sheet1!A393","v":"Tip Your Delivery Driver"},{"$f":"[1]Sheet1!B393","v":"PSA"},{"$f":"[1]Sheet1!D393","v":"This is a public service announcement about tipping your food delivery drivers."}]
[{"$f":"[1]Sheet1!A394","v":"Toad Licking"},{"$f":"[1]Sheet1!B394","v":"PSA"},{"$f":"[1]Sheet1!D394","v":"This is a public service announcement about not licking toads."}]
[{"$f":"[1]Sheet1!A395","v":"Toilet Paper"},{"$f":"[1]Sheet1!B395","v":"PSA"},{"$f":"[1]Sheet1!D395","v":"This is a public service announcement about changing the toliet paper roll when it's empty."}]
[{"$f":"[1]Sheet1!A396","v":"Too Many Cooks"},{"$f":"[1]Sheet1!B396","v":"PSA"},{"$f":"[1]Sheet1!D396","v":"This is a public service announcement about dangers in the kitchen."}]
[{"$f":"[1]Sheet1!A397","v":"Tornado Safety"},{"$f":"[1]Sheet1!B397","v":"PSA"},{"$f":"[1]Sheet1!D397","v":"This is a public service announcement about how to stay safe in a tornado."}]
[{"$f":"[1]Sheet1!A398","v":"Tread Wear"},{"$f":"[1]Sheet1!B398","v":"PSA"},{"$f":"[1]Sheet1!D398","v":"This is a public service announcement about changing your tires."}]
[{"$f":"[1]Sheet1!A399","v":"Tresspassing I"},{"$f":"[1]Sheet1!B399","v":"PSA"},{"$f":"[1]Sheet1!D399","v":"This is a public service announcement about the dangers of trepassing."}]
[{"$f":"[1]Sheet1!A400","v":"Tresspassing II"},{"$f":"[1]Sheet1!B400","v":"PSA"},{"$f":"[1]Sheet1!D400","v":"This is a public service announcement about the dangers of trepassing."}]
[{"$f":"[1]Sheet1!A401","v":"Tropical Rain Forest"},{"$f":"[1]Sheet1!B401","v":"PSA"},{"$f":"[1]Sheet1!D401","v":"This is a public service announcement about information on tropical rainforests."}]
[{"$f":"[1]Sheet1!A402","v":"Turn down the jams"},{"$f":"[1]Sheet1!B402","v":"PSA"},{"$f":"[1]Sheet1!D402","v":"This is a public service announcement about turning down your music."}]
[{"$f":"[1]Sheet1!A403","v":"Turn Signals"},{"$f":"[1]Sheet1!B403","v":"PSA"},{"$f":"[1]Sheet1!D403","v":"This is a public service announcement about using your turn signals."}]
[{"$f":"[1]Sheet1!A404","v":"Ultrabra"},{"$f":"[1]Sheet1!B404","v":"PSA"},{"$f":"[1]Sheet1!D404","v":"This is a public service announcement about women's undergarments."}]
[{"$f":"[1]Sheet1!A405","v":"Underaged Drinking"},{"$f":"[1]Sheet1!B405","v":"PSA"},{"$f":"[1]Sheet1!D405","v":"This is a public service announcement about drinking underage."}]
[{"$f":"[1]Sheet1!A406","v":"Vaccines"},{"$f":"[1]Sheet1!B406","v":"PSA"},{"$f":"[1]Sheet1!D406","v":"This is a public service announcement about information on vaccines."}]
[{"$f":"[1]Sheet1!A407","v":"Veggies"},{"$f":"[1]Sheet1!B407","v":"PSA"},{"$f":"[1]Sheet1!D407","v":"This is a public service announcement about eating vegetables."}]
[{"$f":"[1]Sheet1!A408","v":"Vending machines the violent killer"},{"$f":"[1]Sheet1!B408","v":"PSA"},{"$f":"[1]Sheet1!D408","v":"This is a public service announcement about the danger of vending machines."}]
[{"$f":"[1]Sheet1!A409","v":"Video Game Ratings"},{"$f":"[1]Sheet1!B409","v":"PSA"},{"$f":"[1]Sheet1!D409","v":"This is a public service announcement about video game ratings."}]
[{"$f":"[1]Sheet1!A410","v":"voicemail"},{"$f":"[1]Sheet1!B410","v":"PSA"},{"$f":"[1]Sheet1!D410","v":"This is a public service announcement about checking voicemail."}]
[{"$f":"[1]Sheet1!A411","v":"Voter Turnout"},{"$f":"[1]Sheet1!B411","v":"PSA"},{"$f":"[1]Sheet1!D411","v":"This is a public service announcement about voter turnout in elections."}]
[{"$f":"[1]Sheet1!A412","v":"Wash Ur Hands"},{"$f":"[1]Sheet1!B412","v":"PSA"},{"$f":"[1]Sheet1!D412","v":"This is a public service announcement about washing your hands."}]
[{"$f":"[1]Sheet1!A413","v":"Wash Your Hands"},{"$f":"[1]Sheet1!B413","v":"PSA"},{"$f":"[1]Sheet1!D413","v":"This is a public service announcement about washing your hands."}]
[{"$f":"[1]Sheet1!A414","v":"Water Bottles"},{"$f":"[1]Sheet1!B414","v":"PSA"},{"$f":"[1]Sheet1!D414","v":"This is a public service announcement about using water bottles."}]
[{"$f":"[1]Sheet1!A415","v":"Weight Lifting"},{"$f":"[1]Sheet1!B415","v":"PSA"},{"$f":"[1]Sheet1!D415","v":"This is a public service announcement about how to lift weights correctly."}]
[{"$f":"[1]Sheet1!A416","v":"When You are Pulled Over"},{"$f":"[1]Sheet1!B416","v":"PSA"},{"$f":"[1]Sheet1!D416","v":"This is a public service announcement about what to do when pulled over."}]
[{"$f":"[1]Sheet1!A417","v":"Wine And A Chocolate"},{"$f":"[1]Sheet1!B417","v":"PSA"},{"$f":"[1]Sheet1!D417","v":"This is a public service announcement about wine and chocolate."}]
[{"$f":"[1]Sheet1!A418","v":"Winter Holiday Safety"},{"$f":"[1]Sheet1!B418","v":"PSA"},{"$f":"[1]Sheet1!D418","v":"This is a public service announcement about being safe during the winter holidays."}]
[{"$f":"[1]Sheet1!A419","v":"WNS in Bats"},{"$f":"[1]Sheet1!B419","v":"PSA"},{"$f":"[1]Sheet1!D419","v":"This is a public service announcement about white nose syndrome in bats."}]
[{"$f":"[1]Sheet1!A420","v":"Zoophilia"},{"$f":"[1]Sheet1!B420","v":"PSA"},{"$f":"[1]Sheet1!D420","v":"This is a public service announcement about zoophilia."}]

{"sheet":"Indivigual Program Log","index":3,"n_rows":279,"n_cols":3,"rows_kept":279,"cut":false,"hidden":false,"merged":[[0,0,0,2]]}
["Program Log"]
["Date","Program Type","Title (Start Time, End Time)"]
["1 Oct 2021","PSA",""]
["1 Oct 2021","Ascertainment",""]
["1 Oct 2021","Ad Council",""]
["2 Oct 2021","PSA","Goat 30 (3:19:00 PM), "]
["2 Oct 2021","Ascertainment",""]
["2 Oct 2021","Ad Council",""]
["3 Oct 2021","PSA",""]
["3 Oct 2021","Ascertainment",""]
["3 Oct 2021","Ad Council",""]
["4 Oct 2021","PSA",""]
["4 Oct 2021","Ascertainment","Polio Vaccines And Successes (7:40:00 PM), Stress Breathing Exercise (10:30:00 PM), Tattoo Health (5:24:00 PM, 5:26:56 PM), "]
["4 Oct 2021","Ad Council","Psych Studies (11:35:00 AM), Turn Down Your Ding Dang Speakers (9:34:00 PM, 9:36:15 PM), "]
["5 Oct 2021","PSA","Stem Tips Recycling 15 (11:43:00 AM), Where People Are Coming Together 60 (3:36:00 PM), Moment Of Discovery 60 (9:23:00 PM), "]
["5 Oct 2021","Ascertainment","Bring A Pencil (12:35:00 AM), Printing Papers (1:35:00 PM), College Campus Squirrels (7:54:00 PM, 7:54:59 PM), Falling Coconuts (10:49:00 PM, 10:49:55 PM), "]
["5 Oct 2021","Ad Council","Climbing Club (11:41:00 AM, 11:42:24 AM), Missouri Caves (9:39:00 PM, 9:40:31 PM), "]
["6 Oct 2021","PSA","Smokey Bear - Al Roker 30 (3:45:00 PM), Stories 30 (1:27:00 AM), Goo Goo Dolls 30 (11:41:00 AM), Where People Are Coming Together 30 (6:58:00 PM), Coping 19 - Grief 15 (9:25:00 PM), "]
["6 Oct 2021","Ascertainment","No Metal In The Microwave (10:39:00 PM, 10:40:40 PM), "]
["6 Oct 2021","Ad Council","Missouri Caves (9:11:00 PM, 9:12:31 PM), "]
["7 Oct 2021","PSA","What'S Inside 30 (3:20:00 PM), Olivia Munn - Adopt Pure Love 30 (9:34:00 PM), "]
["7 Oct 2021","Ascertainment","Parking Etiquette (10:31:00 PM, 10:31:44 PM), Check Your Boots (7:53:00 PM, 7:53:40 PM), Road Rage I (9:21:00 AM, 9:22:59 AM), "]
["7 Oct 2021","Ad Council","Lead (7:37:00 AM, 7:37:52 AM), "]
["8 Oct 2021","PSA","Smokey Bear - Al Roker 30 (3:24:00 PM), Sound Of Dinner 30 (6:58:00 PM), "]
["8 Oct 2021","Ascertainment","Call Your Mom (10:56:00 PM, 10:56:40 PM), "]
["8 Oct 2021","Ad Council",""]
["9 Oct 2021","PSA","Play-By-Play 30 (3:31:00 PM), "]
["9 Oct 2021","Ascertainment","Healthy Eating (10:00:00 PM, 10:02:17 PM), "]
["9 Oct 2021","Ad Council",""]
["10 Oct 2021","PSA",""]
["10 Oct 2021","Ascertainment","Vending Machines The Violent Killer (7:57:00 PM, 7:58:04 PM), "]
["10 Oct 2021","Ad Council",""]
["11 Oct 2021","PSA","Forest Benefits 30 (6:49:00 PM, 6:49:30 PM), "]
["11 Oct 2021","Ascertainment","Route 666 (10:28:00 PM, 10:29:52 PM), Falling Coconuts (5:13:00 PM, 5:13:55 PM), "]
["11 Oct 2021","Ad Council","Lead Tutor (11:29:00 AM), Loitering (9:54:00 PM, 9:56:27 PM), "]
["12 Oct 2021","PSA","Missing Out_Revised 30 (11:52:00 AM), Belonging 30 (3:19:00 PM), Curiosity 60 (9:25:00 PM), "]
["12 Oct 2021","Ascertainment","Sleep (12:36:00 AM, 12:37:04 AM), "]
["12 Oct 2021","Ad Council","Frisbeegolf (9:16:00 PM, 9:16:37 PM), "]
["13 Oct 2021","PSA","Smokey Bear - Al Roker 30 (1:20:00 AM), Tougher Than Tough 15 (9:16:00 PM), Where People Are Coming Together 60 (3:42:00 PM), "]
["13 Oct 2021","Ascertainment","Passive Aggressiveness (10:22:00 PM, 10:22:53 PM), "]
["13 Oct 2021","Ad Council","Rolla Farmers Market (9:50:00 PM), "]
["14 Oct 2021","PSA","Forest Animals 60 (9:37:00 PM, 9:38:00 PM), "]
["14 Oct 2021","Ascertainment","Dumpster Diving (9:48:00 AM, 9:51:36 AM), Rotary Polio Efforts (7:55:00 PM), Road Rage I (10:34:00 PM, 10:35:59 PM), Tip Your Delivery Driver (5:30:00 PM, 5:31:05 PM), "]
["14 Oct 2021","Ad Council","Writing Center Ascertainment (11:41:00 AM), Psych Studies (7:29:00 AM), "]
["15 Oct 2021","PSA","Save Your Life 30 (3:22:00 PM), Gun Fight 30 (6:50:00 PM), Get Informed - Hip Hop 60 (11:21:00 AM), "]
["15 Oct 2021","Ascertainment","Straws Suck (11:04:00 PM), The Dangers Of Social Media (6:59:00 PM, 6:59:56 PM), Absentee Voting (1:30:00 PM, 1:30:43 PM), "]
["15 Oct 2021","Ad Council",""]
["16 Oct 2021","PSA","Get Informed - Rock 60 (6:43:00 PM), Olivia Munn - Adopt Pure Love 30 (3:17:00 PM), "]
["16 Oct 2021","Ascertainment",""]
["16 Oct 2021","Ad Council",""]
["17 Oct 2021","PSA",""]
["17 Oct 2021","Ascertainment",""]
["17 Oct 2021","Ad Council",""]
["18 Oct 2021","PSA",""]
["18 Oct 2021","Ascertainment","Always With Me Sub Disorder (10:43:00 PM, 10:43:30 PM), "]
["18 Oct 2021","Ad Council","University Police (11:36:00 AM, 11:37:09 AM), "]
["19 Oct 2021","PSA","Olivia Munn - Adopt Pure Love 30 (3:31:00 PM), "]
["19 Oct 2021","Ascertainment","History Of Vaccinations (10:46:00 PM), Cellphones At Concerts (12:30:00 AM, 12:31:30 AM), Importance Of Vaccinations (1:13:00 PM), "]
["19 Oct 2021","Ad Council",""]
["20 Oct 2021","PSA","Whatever Gets You Talking 30 (1:14:00 AM), "]
["20 Oct 2021","Ascertainment","Dont Swear In Front Of The Children (10:35:00 PM, 10:36:24 PM), "]
["20 Oct 2021","Ad Council","Recycling (9:52:00 PM, 9:55:15 PM), "]
["21 Oct 2021","PSA","What'S Inside 30 (3:46:00 PM), Forest Benefits 60 (9:52:00 PM, 9:53:00 PM), "]
["21 Oct 2021","Ascertainment","My Story Is Yours (7:42:00 PM, 7:42:21 PM), Printing Papers (5:16:00 PM), "]
["21 Oct 2021","Ad Council","Mountain Biking (11:16:00 AM), "]
["22 Oct 2021","PSA","Missing Out_Revised 60 (3:24:00 PM), Smokey Bear - Betty White 30 (7:01:00 PM), "]
["22 Oct 2021","Ascertainment","Respect Women (1:41:00 PM), Don'T Procrastinate (10:35:00 PM), "]
["22 Oct 2021","Ad Council","Lead Tutor (9:48:00 PM), "]
["23 Oct 2021","PSA","Olivia Munn - Adopt Pure Love 15 (9:47:00 PM), Missing Out_Revised 60 (3:43:00 PM), "]
["23 Oct 2021","Ascertainment",""]
["23 Oct 2021","Ad Council",""]
["24 Oct 2021","PSA",""]
["24 Oct 2021","Ascertainment","Pets In Cars (7:37:00 PM, 7:37:34 PM), "]
["24 Oct 2021","Ad Council",""]
["25 Oct 2021","PSA","Tween Band 30 (6:32:00 PM), "]
["25 Oct 2021","Ascertainment","Call Your Mom (10:39:00 PM, 10:39:40 PM), "]
["25 Oct 2021","Ad Council","Turn Down Your Ding Dang Speakers (9:31:00 PM, 9:33:15 PM), Rolla Winter Activities (11:27:00 AM), "]
["26 Oct 2021","PSA","Social Distancing Hero 30 (11:47:00 AM), Whatever Gets You Talking 30 (9:43:00 PM), "]
["26 Oct 2021","Ascertainment","Printing Papers (12:28:00 AM), Texting And Driving (1:27:00 PM), "]
["26 Oct 2021","Ad Council","Student Success Center (2019) (11:19:00AM, 11:19:59AM), "]
["27 Oct 2021","PSA","Save Your Life 30 (3:36:00 PM), Curiosity 15 (1:21:00 AM), Tom 30 (11:53:00 AM), "]
["27 Oct 2021","Ascertainment",""]
["27 Oct 2021","Ad Council","Video Game Addiction (9:37:00 PM, 9:39:25 PM), "]
["28 Oct 2021","PSA","Get Informed - Rock 60 (9:38:00 PM), Olivia 60 (3:18:00 PM), "]
["28 Oct 2021","Ascertainment","My Story Is Yours (9:35:00 AM, 9:35:21 AM), College Campus Squirrels (5:24:00 PM, 5:24:59 PM), "]
["28 Oct 2021","Ad Council","University Police (7:29:00 AM, 7:30:09 AM), "]
["29 Oct 2021","PSA","Olivia Munn - Adopt Pure Love 30 (3:18:00 PM), Goo Goo Dolls 30 (6:55:00 PM), "]
["29 Oct 2021","Ascertainment","Corona Virus And Covid 19 Masks (10:48:00 PM), "]
["29 Oct 2021","Ad Council","Habitat For Humanity Ii (9:55:00 PM, 9:57:34 PM), "]
["30 Oct 2021","PSA","Stem Tips Recycling 30 (9:56:00 PM), Guiding Light 30 (3:28:00 PM), "]
["30 Oct 2021","Ascertainment","Parking Etiquette (10:00:00 PM, 10:00:44 PM), "]
["30 Oct 2021","Ad Council",""]
["31 Oct 2021","PSA",""]
["31 Oct 2021","Ascertainment","Check Your Boots (7:19:00 PM, 7:19:40 PM), "]
["31 Oct 2021","Ad Council",""]
["1 Nov 2021","PSA","What'S Inside 30 (6:31:00 PM), "]
["1 Nov 2021","Ascertainment","Dont Die From The Cold (10:29:00 PM, 10:30:17 PM), Printing Papers (5:11:00 PM), "]
["1 Nov 2021","Ad Council","Mental Health Norwood (9:02:00 PM), "]
["2 Nov 2021","PSA","Guiding Light 30 (9:03:00 PM), "]
["2 Nov 2021","Ascertainment","Loud Music Ii (10:00:00 PM), Wash Ur Hands (1:26:00 PM, 1:26:52 PM), Don'T Be A D (12:31:00 AM), Highway Driving Safety Tips (7:55:00 PM), "]
["2 Nov 2021","Ad Council","Earthquake Safety (11:49:00 AM, 11:51:43 AM), "]
["3 Nov 2021","PSA","Flu Vaccination 60 (6:50:00 PM), Stories 15 (1:25:00 AM), Sound Of Dinner 30 (11:49:00 AM), Parent Tips Song 30 (3:11:00 PM), "]
["3 Nov 2021","Ascertainment","Check Your Boots (1:48:00 PM, 1:48:40 PM), "]
["3 Nov 2021","Ad Council","Rolla Farmers Market (9:29:00 PM), "]
["4 Nov 2021","PSA","Vaccine Information - Country (9:29:00 PM), Lets Get Back To 60 (6:47:00 PM), Moment Of Discovery 60 (3:34:00 PM), "]
["4 Nov 2021","Ascertainment","Fake News (7:21:00 PM, 7:22:08 PM), Influenza And Corona Virus (5:31:00 PM), "]
["4 Nov 2021","Ad Council","Writing Center Ascertainment (11:33:00 AM), Rolla Farmers Market (9:53:00 PM), The Kaleidoscope Discovery Center (7:41:00 AM), "]
["5 Nov 2021","PSA","Cynthia 15 (9:39:00 PM), Carissa 30 (6:15:00 PM), Stem Tips Photo 15 (11:46:00 AM), "]
["5 Nov 2021","Ascertainment","My Story Is Yours (1:55:00 PM, 1:55:21 PM), Influenza And Corona Virus (7:41:00 PM), Drunk Driving (10:43:00 PM), "]
["5 Nov 2021","Ad Council","Mental Health Norwood (9:52:00 PM), "]
["6 Nov 2021","PSA","Gun Fight 15 (9:52:00 PM), Missing Out_Revised 60 (6:11:00 PM), Totally 60 (3:29:00 PM), "]
["6 Nov 2021","Ascertainment","Check Your Boots (10:00:00 PM, 10:00:40 PM), "]
["6 Nov 2021","Ad Council",""]
["7 Nov 2021","PSA",""]
["7 Nov 2021","Ascertainment",""]
["7 Nov 2021","Ad Council",""]
["8 Nov 2021","PSA","Missing Out_Revised 30 (6:32:00 PM), "]
["8 Nov 2021","Ascertainment","Pets In Cars (7:07:00 PM, 7:07:34 PM), Inhalents I (10:32:00 PM), "]
["8 Nov 2021","Ad Council","Lyme Disease (11:19:00 AM, 11:21:34 AM), Audobon Nature Center (9:37:00 PM), "]
["9 Nov 2021","PSA","Telegraphing Catastrophe 30 (9:32:00 PM), Olivia Munn - Adopt Pure Love 15 (6:07:00 PM), Where People Are Coming Together 60 (3:27:00 PM), Play-By-Play 30 (11:40:00 AM), "]
["9 Nov 2021","Ascertainment","Pets In Cars (7:42:00 PM, 7:42:34 PM), Memory Loss (1:40:00 PM, 1:41:05 PM), History Of Vaccinations (10:46:00 PM), "]
["9 Nov 2021","Ad Council","Rolla Farmers Market (11:37:00 AM), "]
["10 Nov 2021","PSA","Stories 15 (11:37:00 AM), Save Your Life 30 (3:21:00 PM), Goo Goo Dolls 30 (6:28:00 PM), "]
["10 Nov 2021","Ascertainment","Wash Ur Hands (8:04:00 PM, 8:04:52 PM), Phobias (10:45:00 PM, 10:45:56 PM), "]
["10 Nov 2021","Ad Council",""]
["11 Nov 2021","PSA","Joseph 60 (3:27:00 PM), Belonging 30 (6:55:00 PM), "]
["11 Nov 2021","Ascertainment","History Of Vaccinations (5:24:00 PM), Healthy Eating (10:30:00 PM, 10:32:17 PM), Check Your Boots (9:31:00 AM, 9:31:40 AM), Rotary Polio Efforts (7:49:00 PM), "]
["11 Nov 2021","Ad Council","Tornado Safety (11:33:00 AM, 11:36:13 AM), Rolla Winter Activities (7:36:00 AM), "]
["12 Nov 2021","PSA","You Can Run 30 (6:39:00 PM), Rising Ashes-Chains 30 (11:34:00 AM, 11:34:30 AM), Carissa 60 (3:16:00 PM), "]
["12 Nov 2021","Ascertainment","History Of Vaccinations (7:57:00 PM), Respect Women (10:46:00 PM), Drink Milk (1:47:00 PM, 1:47:55 PM), "]
["12 Nov 2021","Ad Council","Rolla Farmers Market (9:48:00 PM), "]
["13 Nov 2021","PSA","Tom 60 (3:29:00 PM), Whatever Gets You Talking 30 (9:47:00 PM), Normal Life 60 (7:01:00 PM), "]
["13 Nov 2021","Ascertainment",""]
["13 Nov 2021","Ad Council",""]
["14 Nov 2021","PSA",""]
["14 Nov 2021","Ascertainment","History Of Vaccinations (7:24:00 PM), "]
["14 Nov 2021","Ad Council",""]
["15 Nov 2021","PSA","What'S Inside 30 (6:30:00 PM), "]
["15 Nov 2021","Ascertainment","Passive Aggressiveness (10:40:00 PM, 10:40:53 PM), Loud Music Ii (7:01:00 PM), "]
["15 Nov 2021","Ad Council","Rolla Winter Activities (11:19:00 AM), "]
["16 Nov 2021","PSA","Missing Out_Revised 30 (11:42:00 AM), Imagination Grows 60 (6:10:00 PM), "]
["16 Nov 2021","Ascertainment","Drunk Driving (10:46:00 PM), Too Many Cooks (12:25:00 AM, 12:26:00 AM), Multi Level Marketing Scheme (7:58:00 PM), Dont Text And Drive (1:31:00 PM, 1:32:07 PM), "]
["16 Nov 2021","Ad Council",""]
["17 Nov 2021","PSA","Smokey Bear - Al Roker 30 (1:22:00 AM), Olivia Munn - Adopt Pure Love 30 (3:15:00 PM), "]
["17 Nov 2021","Ascertainment","Stealing Food (10:35:00 PM, 10:35:56 PM), "]
["17 Nov 2021","Ad Council","Writing Center Ascertainment (9:31:00 PM), "]
["18 Nov 2021","PSA","The Best Planner 60 (9:31:00 PM), Whatever Gets You Talking 30 (3:30:00 PM), "]
["18 Nov 2021","Ascertainment","Straws Suck (9:43:00 AM), Printing Papers (7:43:00 PM), "]
["18 Nov 2021","Ad Council","Rolla Public Library (11:22:00 AM), Writing Center Ascertainment (7:43:00 AM), "]
["19 Nov 2021","PSA","Stem Tips Photo 30 (11:44:00 AM), Tougher Than Tough 30 (6:17:00 PM, 6:17:30 PM), Guiding Light 30 (3:21:00 PM), "]
["19 Nov 2021","Ascertainment","Go To Class (10:18:00 PM, 10:19:13 PM), "]
["19 Nov 2021","Ad Council","Earthquake Safety (9:58:00 PM, 10:00:43 PM), "]
["20 Nov 2021","PSA","What'S Inside 30 (9:35:00 PM), Love Fest 30 (3:31:00 PM), "]
["20 Nov 2021","Ascertainment",""]
["20 Nov 2021","Ad Council",""]
["21 Nov 2021","PSA",""]
["21 Nov 2021","Ascertainment",""]
["21 Nov 2021","Ad Council",""]
["22 Nov 2021","PSA",""]
["22 Nov 2021","Ascertainment",""]
["22 Nov 2021","Ad Council",""]
["23 Nov 2021","PSA",""]
["23 Nov 2021","Ascertainment","Cat Herpes (1:03:00 PM, 1:04:12 PM), "]
["23 Nov 2021","Ad Council",""]
["24 Nov 2021","PSA",""]
["24 Nov 2021","Ascertainment",""]
["24 Nov 2021","Ad Council",""]
["25 Nov 2021","PSA",""]
["25 Nov 2021","Ascertainment",""]
["25 Nov 2021","Ad Council",""]
["26 Nov 2021","PSA",""]
["26 Nov 2021","Ascertainment",""]
["26 Nov 2021","Ad Council",""]
["27 Nov 2021","PSA",""]
["27 Nov 2021","Ascertainment",""]
["27 Nov 2021","Ad Council",""]
["28 Nov 2021","PSA",""]
["28 Nov 2021","Ascertainment","Running Red Lights (7:32:00 PM, 7:33:30 PM), "]
["28 Nov 2021","Ad Council",""]
["29 Nov 2021","PSA","Imagination Grows 30 (6:49:00 PM), "]
["29 Nov 2021","Ascertainment",""]
["29 Nov 2021","Ad Council","Frisbee Gold (9:45:00 PM), Loitering (11:22:00 AM, 11:24:27 AM), "]
["30 Nov 2021","PSA","Sound It Out 30 (3:31:00 PM), Guiding Light 15 (9:45:00 PM), Olivia 60 (11:43:00 AM), "]
["30 Nov 2021","Ascertainment","Tattoo Health (7:47:00 PM, 7:49:56 PM), Multi Level Marketing Scheme (12:29:00 AM), Celiac (10:52:00 PM, 10:53:29 PM), Bring A Pencil (1:43:00 PM), Put Dat Toilet Seat Down (6:03:00 PM), "]
["30 Nov 2021","Ad Council",""]
["1 Dec 2021","PSA","Smokey Bear - Al Roker 30 (1:24:00 AM), Goat 30 (3:21:00 PM), "]
["1 Dec 2021","Ascertainment","Family Mental Illness (6:12:00 PM, 6:12:30 PM), Drink Milk (7:14:00 PM, 7:14:55 PM), Clean Towels (10:38:00 PM, 10:39:22 PM), "]
["1 Dec 2021","Ad Council",""]
["2 Dec 2021","PSA","Curiosity 30 (3:39:00 PM), Where People Are Coming Together 15 (6:52:00 PM), "]
["2 Dec 2021","Ascertainment","Cellphones At Concerts (5:23:00 PM, 5:24:30 PM), Dont Text And Drive (10:32:00 PM, 10:33:07 PM), Brush Your Teeth (7:08:00 PM, 7:08:54 PM), "]
["2 Dec 2021","Ad Council","Bowling (7:37:00 AM, 7:38:07 AM), "]
["3 Dec 2021","PSA","Olivia Munn - Adopt Pure Love 30 (6:41:00 PM), Sound Of Dinner 60 (3:22:00 PM), "]
["3 Dec 2021","Ascertainment",""]
["3 Dec 2021","Ad Council","Skatepark (10:03:00 PM, 10:03:46 PM), "]
["4 Dec 2021","PSA","Sound Of Dinner 60 (3:35:00 PM), Whatever Gets You Talking 60 (6:14:00 PM), Courage 30 (10:02:00 PM), "]
["4 Dec 2021","Ascertainment",""]
["4 Dec 2021","Ad Council",""]
["5 Dec 2021","PSA",""]
["5 Dec 2021","Ascertainment",""]
["5 Dec 2021","Ad Council",""]
["6 Dec 2021","PSA",""]
["6 Dec 2021","Ascertainment","History Of Vaccinations (7:07:00 PM), Always With Me Sub Disorder (10:49:00 PM, 10:49:30 PM), "]
["6 Dec 2021","Ad Council","Don'T Be A Stalker (11:24:00 AM), Bowling (9:31:00 PM, 9:32:07 PM), "]
["7 Dec 2021","PSA","Olivia Munn - Adopt Pure Love 15 (9:31:00 PM), Love Fest 15 (7:02:00 PM), Flu Fomo 60 (3:30:00 PM), Boil 30 (11:42:00 AM), "]
["7 Dec 2021","Ascertainment","Check Your Boots (12:25:00 AM, 12:25:40 AM), Rotary Polio Efforts (1:15:00 PM), Loud Music Ii (10:50:00 PM), Multi Level Marketing Scheme (7:51:00 PM), "]
["7 Dec 2021","Ad Council",""]
["8 Dec 2021","PSA","Smokey Bear - Al Roker 30 (1:21:00 AM), Lets Get Back To 30 (3:30:00 PM), Moment Of Discovery 60 (6:42:00 PM), "]
["8 Dec 2021","Ascertainment","Importance Of Vaccinations (7:41:00 PM), "]
["8 Dec 2021","Ad Council",""]
["9 Dec 2021","PSA","Guiding Light 15 (6:41:00 PM), Sour Note 15 (3:23:00 PM), "]
["9 Dec 2021","Ascertainment","Multi Level Marketing Scheme (9:49:00 AM), Stress Breathing Exercise (7:34:00 PM), Put Dat Toilet Seat Down (5:17:00 PM), Bring A Pencil (10:18:00 PM), "]
["9 Dec 2021","Ad Council","St. Pats Advice (7:36:00 AM, 7:37:26 AM), "]
["10 Dec 2021","PSA","Sound It Out 30 (6:38:00 PM), Disaster At Your Doorstep 30 (3:27:00 PM), "]
["10 Dec 2021","Ascertainment","Respect Women (10:49:00 PM), "]
["10 Dec 2021","Ad Council",""]
["11 Dec 2021","PSA","Kiddie Music 30 (6:57:00 PM), Smokey Bear - Betty White 30 (3:30:00 PM), "]
["11 Dec 2021","Ascertainment","Highway Driving Safety Tips (12:26:00 AM), "]
["11 Dec 2021","Ad Council",""]
["12 Dec 2021","PSA",""]
["12 Dec 2021","Ascertainment","Loud Music Ii (10:58:00 PM), "]
["12 Dec 2021","Ad Council","Mstreccenter (9:59:00 PM, 9:59:34 PM), "]
["13 Dec 2021","PSA","Curiosity 15 (9:59:00 PM), "]
["13 Dec 2021","Ascertainment",""]
["13 Dec 2021","Ad Council",""]
["14 Dec 2021","PSA",""]
["14 Dec 2021","Ascertainment",""]
["14 Dec 2021","Ad Council","Mailbox Decapitation (9:35:00 PM, 9:35:45 PM), "]
["15 Dec 2021","PSA","Smokey Bear - Al Roker 30 (3:28:00 PM), Olivia Munn - Adopt Pure Love 15 (9:35:00 PM), "]
["15 Dec 2021","Ascertainment",""]
["15 Dec 2021","Ad Council",""]
["16 Dec 2021","PSA","Play-By-Play 15 (3:21:00 PM), "]
["16 Dec 2021","Ascertainment","Respect Women (1:03:00 PM), Drink Milk (5:20:00 PM, 5:20:55 PM), Tattoo Safety (10:57:00 PM), "]
["16 Dec 2021","Ad Council","Video Game Addiction (9:38:00 PM, 9:40:25 PM), "]
["17 Dec 2021","PSA","Next Step 30 (9:25:00 PM), Virtues 60 (3:07:00 PM), "]
["17 Dec 2021","Ascertainment","Respect Women (1:25:00 PM), "]
["17 Dec 2021","Ad Council",""]
["18 Dec 2021","PSA","Goo Goo Dolls 30 (3:15:00 PM), "]
["18 Dec 2021","Ascertainment",""]
["18 Dec 2021","Ad Council",""]
["19 Dec 2021","PSA","Guiding Light 30 (3:23:00 PM), "]
["19 Dec 2021","Ascertainment","My Story Is Yours (10:56:00 PM, 10:56:21 PM), "]
["19 Dec 2021","Ad Council",""]
["20 Dec 2021","PSA",""]
["20 Dec 2021","Ascertainment",""]
["20 Dec 2021","Ad Council",""]
["21 Dec 2021","PSA",""]
["21 Dec 2021","Ascertainment",""]
["21 Dec 2021","Ad Council",""]
["22 Dec 2021","PSA",""]
["22 Dec 2021","Ascertainment",""]
["22 Dec 2021","Ad Council",""]
["23 Dec 2021","PSA",""]
["23 Dec 2021","Ascertainment",""]
["23 Dec 2021","Ad Council",""]
["24 Dec 2021","PSA",""]
["24 Dec 2021","Ascertainment",""]
["24 Dec 2021","Ad Council",""]
["25 Dec 2021","PSA",""]
["25 Dec 2021","Ascertainment",""]
["25 Dec 2021","Ad Council",""]
["26 Dec 2021","PSA",""]
["26 Dec 2021","Ascertainment",""]
["26 Dec 2021","Ad Council",""]
["27 Dec 2021","PSA",""]
["27 Dec 2021","Ascertainment",""]
["27 Dec 2021","Ad Council",""]
["28 Dec 2021","PSA",""]
["28 Dec 2021","Ascertainment",""]
["28 Dec 2021","Ad Council",""]
["29 Dec 2021","PSA",""]
["29 Dec 2021","Ascertainment",""]
["29 Dec 2021","Ad Council",""]
["30 Dec 2021","PSA",""]
["30 Dec 2021","Ascertainment",""]
["30 Dec 2021","Ad Council",""]
["31 Dec 2021","PSA",""]
["31 Dec 2021","Ascertainment",""]
["31 Dec 2021","Ad Council",""]
[null,null,""]